Workbook

Sheet Table Format (hidden)
A1: Index
B4: Table title, 20XX-XX
B5: (millions of dollars, thousands of units)
B6: Size | C6: Q1-13 | D6: Q2-13 | E6: Q3-13 | F6: Q4-13 | G6: Q1-14 | H6: Q2-14 | I6: Q3-14 | J6: Q4-13 | K6: Q1-15 | L6: Q2-15 | M6: Q3-15 | N6: Q4-15
B7: Item one | C7: 406.6181427 | D7: 433.3400404 | E7: 431.9276944 | F7: 416.1241129 | G7: 1688.00999 | H7: 350.2819746 | I7: 475.2014205 | J7: 302.4866394 | K7: 197.5016965 | L7: 1325.471731 | M7: 198.4351258 | N7: 202.9642692
B8: Item two | C8: 2455.149072 | D8: 2415.297966 | E8: 2617.184004 | F8: 2591.891591 | G8: 10079.52263 | H8: 2103.400962 | I8: 2115.315184 | J8: 1315.057251 | K8: 965.7956208 | L8: 6499.569017 | M8: 891.0569332 | N8: 961.1134894
B9: Item three | C9: 2200.816503 | D9: 2410.773581 | E9: 2729.633968 | F9: 2825.006252 | G9: 10166.2303 | H9: 2579.300697 | I9: 2809.376661 | J9: 2147.793687 | K9: 1978.074295 | L9: 9514.545341 | M9: 1786.797899 | N9: 1796.804007
B10: Item four | C10: 523.5936987 | D10: 496.6885219 | E10: 581.8802363 | F10: 670.1932126 | G10: 2272.355669 | H10: 587.4749348 | I10: 536.0370641 | J10: 437.7898185 | K10: 401.1042835 | L10: 1962.406101 | M10: 379.5264077 | N10: 371.2635814
B11: Item five | C11: 367.4322051 | D11: 501.218386 | E11: 662.1004664 | F11: 933.0711766 | G11: 2463.822234 | H11: 962.7188578 | I11: 1065.762687 | J11: 951.9938985 | K11: 806.0483365 | L11: 3786.52378 | M11: 819.4717476 | N11: 871.2289263
B12: Item six | C12: 181.1025039 | D12: 187.7758194 | E12: 265.0603994 | F12: 320.6839826 | G12: 954.6227053 | H12: 370.869087 | I12: 351.349935 | J12: 379.4731085 | K12: 310.8411963 | L12: 1412.533327 | M12: 310.417113 | N12: 305.0311964
B13: Item seven | C13: 12.0645145 | D13: 13.45536756 | E13: 20.79628903 | F13: 16.20534734 | G13: 62.52151842 | H13: 25.22494729 | I13: 31.62508204 | J13: 65.54261061 | K13: 58.61850572 | L13: 181.0111457 | M13: 70.14817634 | N13: 102.0448783
B14: Item eight | C14: 33.884111 | D14: 31.88592 | E14: 73.46057656 | F14: 58.80493374 | G14: 198.0355413 | H14: 39.66653911 | I14: 46.6647756 | J14: 53.17752099 | K14: 48.01720191 | L14: 187.5260376 | M14: 49.35542904 | N14: 53.0640835
B15: Grand total | C15: 6180.660752 | D15: 6490.435602 | E15: 7382.043633 | F15: 7831.980608 | G15: 27885.1206 | H15: 7018.937999 | I15: 7431.332809 | J15: 5653.314535 | K15: 4766.001136 | L15: 24869.58648 | M15: 4505.208832 | N15: 4663.514432
B16: Notes
B17: Source: IHS Markit | N17: © 2021 IHS Markit
B22: Table heading | C22: Left-align text | D22: Right-align numbers | E22: Centre single- | F22: Bottom-align column headings
E23: digit entries
B24: Table content | C24: Text content | D24: 10.14 | E24: Y | F24: Table content
B25: Table content | C25: Text content | D25: 5.2 | E25: N | F25: Table content
B26: Table content | C26: Text content | D26: 8.25 | E26: Y | F26: Table content

Sheet Front Page
B3: Puget Sound Pilots Rate proceeding Research Analysis
B4: Master Data File
B6: Prepared for
B7: Puget Sound Pilots
B9: =TODAY() -> 2022-07-07
B11: Chart Data
B12: Exports by Port
B13: Imports by Port
B14: Assignments by Vessel Class
B15: Gross Tonnage by Vessel Class
B16: Avg GT by Vessel Class
B17: Financial Stress
B18: PMI
B19: Delivery Days
B20: Exports by Detailed Port Ra
B21: JOC Container Rate Data
B22: Dry Bulk Voyage Rates
B23: Income Data
B24: Container Generation Data
B25: Fleet Deadweight
B26: Growth in Deadweight
B27: Ship Builds
B28: Ship Deadweight
B29: Summary by Pilot Group
B30: Proposed vs. Other Pilot Groups
B31: Summary Pilot Fees
B32: Risk Reduction

Sheet Exports by Port
A1: Index
B3: Leading west coast ports by export volumes
B4: Million Tons
B5: Port | C5: 2016 | D5: 2017 | E5: 2018 | F5: 2019 | G5: 2020 | H5: 2021 | I5: Poultry Fat (MT) | J5: DCO (MT) | K5: Tallow (MT) | L5: SBO (MT)
B6: LA/Long Beach | C6: 62.89825456 | D6: 63.43476648 | E6: 65.39121977 | F6: 63.01570012 | G6: 61.66017422 | H6: 61.26004894
B7: San Francisco/Oakland | C7: 14.95935752 | D7: 16.45864505 | E7: 16.80361388 | F7: 15.24364358 | G7: 15.26880452 | H7: 14.79570414
B8: Puget Sound | C8: 39.84574551 | D8: 38.82429576 | E8: 41.26841838 | F8: 37.95066264 | G8: 38.73760008 | H8: 39.17022102
B9: Columbia River | C9: 16.8257686 | D9: 20.30561993 | E9: 21.51350357 | F9: 19.7045836 | G9: 18.55913489 | H9: 18.99686848
B10: Grand total | C10: =SUM(C7:C9) -> 71.63087163 | D10: 75.58856074 | E10: 79.58553583 | F10: 72.89888981 | G10: 72.56553949 | H10: 72.96279364
B11: Source: IHS Markit

Sheet Imports by Port
A1: Index
B3: Leading west coast ports by import volumes
B4: Million Tons
B5: Port | C5: 2016 | D5: 2017 | E5: 2018 | F5: 2019 | G5: 2020 | H5: 2021 | I5: Poultry Fat (MT) | J5: DCO (MT) | K5: Tallow (MT) | L5: SBO (MT)
B6: LA/Long Beach | C6: 200.7722182 | D6: 211.0273176 | E6: 216.9113567 | F6: 208.1849498 | G6: 206.7164365 | H6: 231.8036461
B7: San Francisco/Oakland | C7: 27.10322174 | D7: 30.41746223 | E7: 30.56813015 | F7: 28.95443847 | G7: 26.35399553 | H7: 27.96907537
B8: Puget Sound | C8: 56.9896871 | D8: 54.7041343 | E8: 58.3100987 | F8: 53.89893721 | G8: 50.83859621 | H8: 54.75512933
B9: Columbia River | C9: 18.43567113 | D9: 21.74454318 | E9: 22.93178586 | F9: 21.1694147 | G9: 19.56990412 | H9: 19.76691219
B10: Grand total | C10: =SUM(C6:C9) -> 303.3007982 | D10: 317.8934573 | E10: 328.7213714 | F10: 312.2077402 | G10: 303.4789323 | H10: 334.294763
B11: Source: IHS Markit

Sheet Assignments by Vessel Class
A1: Index
B3: Assignments by vessel class
B4: Assignments
B5: Port | C5: bulker | D5: car carrier | E5: container | F5: general | G5: naval | H5: other | I5: passenger | J5: reefer | K5: ro/ro | L5: tanker
B6: 2016 | C6: 1173 | D6: 512 | E6: 2677 | F6: 183 | G6: 11 | H6: 81 | I6: 419 | J6: 21 | K6: 255 | L6: 2327
B7: 2017 | C7: 1104 | D7: 481 | E7: 2401 | F7: 200 | G7: 14 | H7: 84 | I7: 444 | J7: 33 | K7: 248 | L7: 2238
B8: 2018 | C8: 1132 | D8: 496 | E8: 2440 | F8: 182 | G8: 8 | H8: 155 | I8: 461 | J8: 12 | K8: 238 | L8: 2204
B9: 2019 | C9: 968 | D9: 606 | E9: 2429 | F9: 188 | G9: 11 | H9: 110 | I9: 432 | J9: 15 | K9: 242 | L9: 1999
B10: 2020 | C10: 1063 | D10: 376 | E10: 2294 | F10: 190 | G10: 12 | H10: 107 | I10: 4 | J10: 21 | K10: 233 | L10: 1811
B11: 2021 | C11: 1156 | D11: 446 | E11: 2475 | F11: 263 | G11: 10 | H11: 144 | I11: 225 | J11: 38 | K11: 237 | L11: 1959
B12: Grand total | C12: =SUM(C7:C11) -> 5423 | D12: 2405 | E12: 12039 | F12: 1023 | G12: 55 | H12: 600 | I12: =SUM(I7:I11) -> 1566 | J12: 119 | K12: 1198 | L12: 10211
B13: Source: IHS Markit

Sheet Gross Tonnage by Vessel Class
A1: Index
B3: Annual gross tonnage by vessel class
B4: Gross tonnage
B5: Port | C5: bulker | D5: car carrier | E5: container | F5: general | G5: naval | H5: other | I5: passenger | J5: reefer | K5: ro/ro | L5: tanker
B6: 2016 | C6: 38033687 | D6: 29325161 | E6: 188701275 | F6: 4812661 | G6: 166363 | H6: 685235 | I6: 38573710 | J6: 165534 | K6: 15158388 | L6: 91028423
B7: 2017 | C7: 36729442 | D7: 28119571 | E7: 163804963 | F7: 5001715 | G7: 549504 | H7: 634497 | I7: 41929280 | J7: 228028 | K7: 14629493 | L7: 92085889
B8: 2018 | C8: 37673273 | D8: 30533700 | E8: 170439275 | F8: 4522685 | G8: 18400 | H8: 1576376 | I8: 44007774 | J8: 106792 | K8: 14094612 | L8: 95286152
B9: 2019 | C9: 30762893 | D9: 37947187 | E9: 172869129 | F9: 4518757 | G9: 45900 | H9: 1134486 | I9: 49078454 | J9: 223098 | K9: 14433105 | L9: 80593202
B10: 2020 | C10: 36253670 | D10: 23089345 | E10: 160538068 | F10: 4512233 | G10: 54281 | H10: 745782 | I10: 18718 | J10: 207134 | K10: 13780249 | L10: 66298451
B11: 2021 | C11: 38760295 | D11: 26733894 | E11: 161253545 | F11: 5919529 | G11: 71228 | H11: 1649367 | I11: 26569623 | J11: 376384 | K11: 14348904 | L11: 76578057
B12: Grand total | C12: =SUM(C7:C11) -> 180179573 | D12: 146423697 | E12: 828904980 | F12: 24474919 | G12: 739313 | H12: 5740508 | I12: =SUM(I7:I11) -> 161603849 | J12: 1141436 | K12: 71286363 | L12: 410841751
B13: Source: IHS Markit

Sheet Avg GT by Vessel Class
A1: Index
B3: Average gross tonnage by vessel class
B4: Gross tonnage
B5: Port | C5: bulker | D5: car carrier | E5: container | F5: general | G5: naval | H5: other | I5: passenger | J5: reefer | K5: ro/ro | L5: tanker
B6: 2016 | C6: 32424.28559 | D6: 57275.70508 | E6: 70489.83003 | F6: 26298.69399 | G6: 15123.90909 | H6: 8459.691358 | I6: 92061.36038 | J6: 7882.571429 | K6: 59444.65882 | L6: 39118.35969
B7: 2017 | C7: 33269.4221 | D7: 58460.64657 | E7: 68223.6414 | F7: 25008.575 | G7: 39250.28571 | H7: 7553.535714 | I7: 94435.31532 | J7: 6909.939394 | K7: 58989.89113 | L7: 41146.50983
B8: 2018 | C8: 33280.2765 | D8: 61559.87903 | E8: 69852.16189 | F8: 24849.91758 | G8: 2300 | H8: 10170.16774 | I8: 95461.54881 | J8: 8899.333333 | K8: 59221.05882 | L8: 43233.28131
B9: 2019 | C9: 31779.84814 | D9: 62619.12046 | E9: 71168.84685 | F9: 24035.94149 | G9: 4172.727273 | H9: 10313.50909 | I9: 113607.5324 | J9: 14873.2 | K9: 59640.92975 | L9: 40316.75938
B10: 2020 | C10: 34105.05174 | D10: 61407.83245 | E10: 69981.72101 | F10: 23748.59474 | G10: 4523.416667 | H10: 6969.925234 | I10: 4679.5 | J10: 9863.52381 | K10: 59142.69957 | L10: 36608.75262
B11: 2021 | C11: 33529.66696 | D11: 59941.46637 | E11: 65152.94747 | F11: 22507.71483 | G11: 7122.8 | H11: 11453.9375 | I11: 118087.2133 | J11: 9904.842105 | K11: 60543.89873 | L11: 39090.38132
B12: Grand total | C12: =SUM(C7:C11) -> 165964.2654 | D12: 303988.9449 | E12: 344379.3186 | F12: 120150.7436 | G12: 57369.22965 | H12: 46461.07528 | I12: =SUM(I7:I11) -> 426271.1099 | J12: 50450.83864 | K12: 297538.478 | L12: 200395.6845
B13: Source: IHS Markit

Sheet Financial Stress
A1: Index

Sheet PMI
A1: Index

Sheet Delivery Delays
A1: Index

Sheet Exports by Detailed Port Ra
A1: Index
A2: Grain and Soybean Exports by Detailed Port Range (1,000 bushels)
A4: TYPE_CARR | B4: 6
A5: GRAIN | B5: (All)
C7: Crop Year
A8: Data | B8: Port Range Detail | C8: 1982/1983 | D8: 1983/1984 | E8: 1984/1985 | F8: 1985/1986 | G8: 1986/1987 | H8: 1987/1988 | I8: 1988/1989 | J8: 1989/1990 | K8: 1990/1991 | L8: 1991/1992 | M8: 1992/1993 | N8: 1993/1994 | O8: 1994/1995 | P8: 1995/1996 | Q8: 1996/1997 | R8: 1997/1998 | S8: 1998/1999 | T8: 1999/2000 | U8: 2000/2001 | V8: 2001/2002 | W8: 2002/2003 | X8: 2003/2004 | Y8: 2004/2005 | Z8: 2005/2006 | AA8: 2006/2007 | AB8: 2007/2008 | AC8: 2008/2009 | AD8: 2009/2010 | AE8: 2010/2011 | AF8: 2011/2012 | AG8: 2012/2013 | AH8: 2013/2014 | AI8: 2014/2015 | AJ8: 2015/2016 | AK8: 2016/2017 | AL8: 2017/2018 | AM8: 2018/2019 | AN8: 2019/2020 | AO8: 2020/2021 | AP8: 2021/2022
A9: 1,000 Bushels | B9: Duluth-Sup | J9: 1 | AJ9: 3 | AM9: 60
B10: Chicago | Y10: 295 | Z10: 50 | AA10: 294 | AB10: 766 | AC10: 460 | AF10: 134 | AG10: 25
B11: Toledo | AC11: 1 | AD11: 4 | AE11: 9 | AF11: 110 | AG11: 237
B12: Montreal
B13: Seaway
B14: Port Huron | I14: 8 | R14: 17 | S14: 2 | U14: 1
B15: N. Atlantic | AB15: 2115 | AC15: 3299 | AD15: 6253 | AE15: 9249 | AF15: 7189 | AG15: 9083 | AH15: 12955 | AI15: 16197 | AJ15: 8967 | AK15: 5741 | AL15: 3761 | AM15: 2090 | AN15: 1884 | AO15: 1735 | AP15: 907
B16: S. Atlantic | Y16: 404 | Z16: 1900 | AA16: 5332 | AB16: 17840 | AC16: 11460 | AD16: 19858 | AE16: 12548 | AF16: 11237 | AG16: 21829 | AH16: 24817 | AI16: 23778 | AJ16: 14923 | AK16: 17984 | AL16: 18981 | AM16: 11647 | AN16: 20990 | AO16: 28530 | AP16: 20642
B17: East Gulf | E17: 86 | F17: 185 | H17: 40 | I17: 6 | J17: 47 | K17: 21 | AB17: 11
B18: Center Gulf | N18: 27 | O18: 96 | AJ18: 208
B19: N. Texas | C19: 130 | D19: 397 | E19: 100 | F19: 13 | G19: 20 | I19: 25 | J19: 14 | O19: 52 | P19: 6 | Q19: 96 | S19: 74 | T19: 295 | U19: 539 | V19: 1983 | W19: 1929 | X19: 1337 | Y19: 1252 | Z19: 756 | AA19: 646 | AB19: 821 | AC19: 292 | AD19: 226 | AE19: 404 | AF19: 761 | AG19: 303 | AH19: 142 | AJ19: 276 | AK19: 631 | AL19: 1655 | AM19: 931 | AN19: 797 | AO19: 1790 | AP19: 1641
B20: S. Texas | G20: 98 | H20: 40 | I20: 20 | K20: 50 | L20: 12 | M20: 236 | N20: 731 | O20: 43 | P20: 132 | S20: 122
B21: Interior | D21: 49 | E21: 18 | F21: 11 | G21: 78 | H21: 76 | I21: 24 | J21: 14 | K21: 22 | L21: 332 | M21: 74 | N21: 330 | O21: 602 | P21: 17 | Q21: 10 | R21: 165 | S21: 135 | T21: 320 | U21: 73 | V21: 42 | W21: 138 | X21: 357 | Y21: 18676 | Z21: 48260 | AA21: 127276 | AB21: 178891 | AC21: 103902 | AD21: 83659 | AE21: 123103 | AF21: 128853 | AG21: 78297 | AH21: 117592 | AI21: 117314 | AJ21: 111960 | AK21: 156395 | AL21: 196126 | AM21: 172719 | AN21: 154857 | AO21: 164545 | AP21: 97626
B22: Columbia River | R22: 15 | AG22: 8
B23: Puget Sound | K23: 56 | X23: 932 | Y23: 2255 | Z23: 1990 | AA23: 11933 | AB23: 14615 | AC23: 3561 | AD23: 3085 | AE23: 9402 | AF23: 6469 | AG23: 5954 | AH23: 5102 | AI23: 1958 | AJ23: 1804 | AK23: 3763 | AL23: 2007 | AM23: 2143 | AN23: 1419 | AO23: 1194 | AP23: 95
B24: California | E24: 12 | X24: 94 | Y24: 90 | AA24: 11 | AB24: 5560 | AC24: 4893 | AD24: 7023 | AE24: 5916 | AF24: 3372 | AG24: 1307 | AH24: 4403 | AI24: 1259 | AJ24: 685 | AK24: 816 | AL24: 984 | AM24: 944 | AN24: 787 | AO24: 1049 | AP24: 571
A25: Sum of SumOfSUBLOTS | B25: Duluth-Sup | J25: 1 | AJ25: 2 | AM25: 66
B26: Chicago | Y26: 316 | Z26: 65 | AA26: 344 | AB26: 926 | AC26: 496 | AF26: 166 | AG26: 32
B27: Toledo | AC27: 1 | AD27: 5 | AE27: 9 | AF27: 146 | AG27: 280
B28: Montreal
B29: Seaway
B30: Port Huron | I30: 12 | R30: 8 | S30: 4 | U30: 2
B31: N. Atlantic | AB31: 2459 | AC31: 3510 | AD31: 6593 | AE31: 9882 | AF31: 7665 | AG31: 9766 | AH31: 14284 | AI31: 17896 | AJ31: 9912 | AK31: 6360 | AL31: 4154 | AM31: 2307 | AN31: 2080 | AO31: 1924 | AP31: 1005
B32: S. Atlantic | Y32: 449 | Z32: 2097 | AA32: 5750 | AB32: 19488 | AC32: 12683 | AD32: 21825 | AE32: 13674 | AF32: 12469 | AG32: 23979 | AH32: 27521 | AI32: 26168 | AJ32: 16350 | AK32: 19806 | AL32: 21024 | AM32: 12894 | AN32: 23181 | AO32: 31562 | AP32: 22845
B33: East Gulf | E33: 120 | F33: 51 | H33: 10 | I33: 2 | J33: 7 | K33: 3 | AB33: 11
B34: Center Gulf | N34: 35 | O34: 129 | AJ34: 215
B35: N. Texas | C35: 200 | D35: 607 | E35: 144 | F35: 16 | G35: 24 | I35: 4 | J35: 18 | O35: 67 | P35: 9 | Q35: 75 | S35: 97 | T35: 381 | U35: 720 | V35: 2152 | W35: 2525 | X35: 1752 | Y35: 1538 | Z35: 1043 | AA35: 360 | AB35: 1079 | AC35: 404 | AD35: 304 | AE35: 587 | AF35: 1028 | AG35: 386 | AH35: 148 | AJ35: 286 | AK35: 654 | AL35: 1727 | AM35: 973 | AN35: 829 | AO35: 1867 | AP35: 1724
B36: S. Texas | G36: 16 | H36: 7 | I36: 12 | K36: 43 | L36: 1 | M36: 109 | N36: 368 | O36: 30 | P36: 184 | S36: 17
B37: Interior | D37: 70 | E37: 27 | F37: 17 | G37: 91 | H37: 97 | I37: 32 | J37: 7 | K37: 25 | L37: 354 | M37: 102 | N37: 265 | O37: 186 | P37: 21 | Q37: 13 | R37: 171 | S37: 200 | T37: 486 | U37: 110 | V37: 63 | W37: 169 | X37: 538 | Y37: 26546 | Z37: 61819 | AA37: 162554 | AB37: 228127 | AC37: 136496 | AD37: 106482 | AE37: 140770 | AF37: 148007 | AG37: 92150 | AH37: 131050 | AI37: 127080 | AJ37: 122003 | AK37: 170545 | AL37: 213375 | AM37: 188156 | AN37: 169500 | AO37: 179831 | AP37: 106940
B38: Columbia River | R38: 19 | AG38: 9
B39: Puget Sound | K39: 75 | X39: 1171 | Y39: 2945 | Z39: 2331 | AA39: 14048 | AB39: 16957 | AC39: 4064 | AD39: 3514 | AE39: 10321 | AF39: 6976 | AG39: 6479 | AH39: 5607 | AI39: 2110 | AJ39: 2076 | AK39: 4116 | AL39: 2114 | AM39: 2293 | AN39: 1537 | AO39: 1311 | AP39: 103
B40: California | E40: 18 | X40: 98 | Y40: 114 | AA40: 14 | AB40: 7148 | AC40: 6316 | AD40: 8591 | AE40: 6685 | AF40: 3831 | AG40: 1551 | AH40: 5025 | AI40: 1300 | AJ40: 703 | AK40: 851 | AL40: 1037 | AM40: 988 | AN40: 816 | AO40: 1075 | AP40: 605
A41: Total 1,000 Bushels | C41: 130 | D41: 446 | E41: 216 | F41: 209 | G41: 196 | H41: 156 | I41: 83 | J41: 76 | K41: 149 | L41: 344 | M41: 310 | N41: 1088 | O41: 793 | P41: 155 | Q41: 106 | R41: 197 | S41: 333 | T41: 615 | U41: 613 | V41: 2025 | W41: 2067 | X41: 2720 | Y41: 22972 | Z41: 52956 | AA41: 145492 | AB41: 220619 | AC41: 127868 | AD41: 120108 | AE41: 160631 | AF41: 158125 | AG41: 117043 | AH41: 165011 | AI41: 160506 | AJ41: 138826 | AK41: 185330 | AL41: 223514 | AM41: 190534 | AN41: 180734 | AO41: 198843 | AP41: 121482
A42: Total Sum of SumOfSUBLOTS | C42: 200 | D42: 677 | E42: 309 | F42: 84 | G42: 131 | H42: 114 | I42: 62 | J42: 33 | K42: 146 | L42: 355 | M42: 211 | N42: 668 | O42: 412 | P42: 214 | Q42: 88 | R42: 198 | S42: 318 | T42: 867 | U42: 832 | V42: 2215 | W42: 2694 | X42: 3559 | Y42: 31908 | Z42: 67355 | AA42: 183070 | AB42: 276195 | AC42: 163970 | AD42: 147314 | AE42: 181928 | AF42: 180288 | AG42: 134632 | AH42: 183635 | AI42: 174554 | AJ42: 151547 | AK42: 202332 | AL42: 243431 | AM42: 207677 | AN42: 197943 | AO42: 217570 | AP42: 133222

Sheet JOC Container Rate Data
A1: Index
A4: Container freight rates on select routes (US$ per FEU)
A5: https://www.joc.com/market-data-landing/container-pricing
B6: Trans-Pacific Eastbound | C6: Trans-Pacific Westbound | D6: Asia-Europe | E6: Europe Asia | F6: Trans-Atlantic Westbound | G6: Trans-Atlantic Eastbound
A7: Date | B7: China to US West Coast | C7: US West Coast to China | D7: China (Shanghai) to Europe (Rotterdam) | E7: Europe (Rotterdam) to China (Shanghai) | F7: Rotterdam to New York | G7: New York to Rotterdam | Q7: China West Coast Ratio
A8: 2020-07-31 | B8: 2672 | C8: 513 | D8: 1784 | E8: 1198 | Q8: =B8/C8 -> 5.208576998
A9: =A8+7 -> 2020-08-07 | B9: 2874 | C9: 518 | D9: 1856 | E9: 1296 | K9: =(B9-B8)/B8 -> 0.0755988024 | L9: 0.009746588694 | M9: 0.04035874439 | N9: 0.08180300501 | Q9: 5.548262548
A10: =A9+7 -> 2020-08-14 | B10: 3064 | C10: 518 | D10: 1805 | E10: 1297 | F10: 2202 | G10: 561 | K10: 0.06610995129 | L10: 0 | M10: -0.02747844828 | N10: 0.0007716049383 | Q10: 5.915057915
A11: 2020-08-21 | B11: 3270 | C11: 518 | D11: 1870 | E11: 1222 | F11: 2449 | G11: 552 | K11: 0.06723237598 | L11: 0 | M11: 0.03601108033 | N11: -0.05782575173 | Q11: 6.312741313
A12: 2020-08-28 | B12: 3335 | C12: 518 | D12: 1992 | E12: 1187 | F12: 2449 | G12: 551 | K12: 0.01987767584 | L12: 0 | M12: 0.06524064171 | N12: -0.02864157119 | Q12: 6.438223938
A13: 2020-09-04 | B13: 3500 | C13: 518 | D13: 2153 | E13: 1217 | F13: 2449 | G13: 552 | K13: 0.04947526237 | L13: 0 | M13: 0.08082329317 | N13: 0.02527379949 | Q13: 6.756756757
A14: 2020-09-11 | B14: 3716 | C14: 518 | D14: 2134 | E14: 1239 | F14: 2421 | G14: 551 | K14: 0.06171428571 | L14: 0 | M14: -0.008824895495 | N14: 0.01807723911 | Q14: 7.173745174
A15: 2020-09-18 | B15: 3716 | C15: 518 | D15: 2287 | E15: 1294 | F15: 2437 | G15: 552 | K15: 0 | L15: 0 | M15: 0.07169634489 | N15: 0.04439063761 | Q15: 7.173745174
A16: 2020-09-25 | B16: 3884 | C16: 518 | D16: 2294 | E16: 1294 | F16: 2437 | G16: 552 | K16: 0.04520990312 | L16: 0 | M16: 0.003060778312 | N16: 0 | Q16: 7.498069498
A17: 2020-10-02 | B17: 3884 | C17: 518 | D17: 2217 | E17: 1294 | F17: 2222 | G17: 551 | K17: 0 | L17: 0 | M17: -0.03356582389 | N17: 0 | Q17: 7.498069498
A18: 2020-10-09 | B18: 3863 | C18: 518 | D18: 2197 | E18: 1075 | F18: 2134 | G18: 551 | K18: -0.005406797116 | L18: 0 | M18: -0.00902119982 | N18: -0.1692426584 | Q18: 7.457528958
A19: 2020-10-16 | B19: 3847 | C19: 518 | D19: 2211 | E19: 1100 | F19: 2016 | G19: 552 | K19: -0.004141858659 | L19: 0 | M19: 0.006372325899 | N19: 0.02325581395 | Q19: 7.426640927
A20: 2020-10-23 | B20: 3843 | C20: 518 | D20: 2186 | E20: 1100 | F20: 2016 | G20: 552 | K20: -0.00103977125 | L20: 0 | M20: -0.01130710086 | N20: 0 | Q20: 7.418918919
A21: 2020-10-30 | B21: 3852 | C21: 518 | D21: 2219 | E21: 1100 | F21: 2016 | G21: 552 | K21: 0.002341920375 | L21: 0 | M21: 0.01509606587 | N21: 0 | Q21: 7.436293436
A22: 2020-11-06 | B22: 3846 | C22: 518 | D22: 2306 | E22: 1162 | F22: 2014 | G22: 552 | K22: -0.001557632399 | L22: 0 | M22: 0.03920684993 | N22: 0.05636363636 | Q22: 7.424710425
A23: 2020-11-13 | B23: 3846 | C23: 518 | D23: 2473 | E23: 1209 | F23: 2034 | G23: 558 | K23: 0 | L23: 0 | M23: 0.0724197745 | N23: 0.0404475043 | Q23: 7.424710425
A24: 2020-11-20 | B24: 3846 | C24: 518 | D24: 2835 | E24: 1165 | F24: 2014 | G24: 647 | K24: 0 | L24: 0 | M24: 0.1463809139 | N24: -0.03639371381 | Q24: 7.424710425
A25: 2020-11-27 | B25: 3874 | C25: 518 | D25: 3528 | E25: 1165 | F25: 2016 | G25: 647 | K25: 0.007280291212 | L25: 0 | M25: 0.2444444444 | N25: 0 | Q25: 7.478764479
A26: 2020-12-04 | B26: 3873 | C26: 518 | D26: 4581 | E26: 1307 | F26: 2014 | G26: 648 | K26: -0.0002581311306 | L26: 0 | M26: 0.2984693878 | N26: 0.121888412 | Q26: 7.476833977
A27: 2020-12-11 | B27: 3877 | C27: 518 | D27: 4575 | E27: 1313 | F27: 1972 | G27: 650 | K27: 0.001032791118 | L27: 0 | M27: -0.001309757695 | N27: 0.004590665647 | Q27: 7.484555985
A28: 2020-12-18 | B28: 3879 | C28: 518 | D28: 6503 | E28: 1313 | F28: 1972 | G28: 650 | K28: 0.0005158627805 | L28: 0 | M28: 0.421420765 | N28: 0 | Q28: 7.488416988
A29: 2020-12-25 | B29: 3876 | C29: 518 | D29: 6549 | E29: 1313 | F29: 2109 | G29: 651 | K29: -0.0007733952049 | L29: 0 | M29: 0.007073658312 | N29: 0 | Q29: 7.482625483
A30: 2021-01-01 | B30: 4195 | C30: 518 | D30: 6606 | E30: 1313 | F30: 2109 | G30: 651 | K30: 0.08230134159 | L30: 0 | M30: 0.008703618873 | N30: 0 | Q30: 8.098455598
A31: 2021-01-08 | B31: 4027 | C31: 518 | D31: 8882 | E31: 1357 | F31: 2185 | G31: 690 | K31: -0.0400476758 | L31: 0 | M31: 0.344535271 | N31: 0.03351104341 | Q31: 7.774131274
A32: 2021-01-15 | B32: 4263 | C32: 518 | D32: 8815 | E32: 1357 | F32: 2116 | G32: 663 | K32: 0.05860442016 | L32: 0 | M32: -0.007543346093 | N32: 0 | Q32: 8.22972973
A33: 2021-01-22 | B33: 4261 | C33: 530 | D33: 9066 | E33: 1409 | F33: 2283 | G33: 646 | K33: -0.0004691531785 | L33: 0.02316602317 | M33: 0.02847419172 | N33: 0.03831982314 | Q33: 8.039622642
A34: 2021-01-29 | B34: 4291 | C34: 530 | D34: 8740 | E34: 1409 | F34: 2283 | G34: 646 | K34: 0.007040600798 | L34: 0 | M34: -0.03595852636 | N34: 0 | Q34: 8.096226415
A35: 2021-02-05 | B35: 4334 | C35: 530 | D35: 8543 | E35: 1465 | F35: 2254 | G35: 743 | K35: 0.01002097413 | L35: 0 | M35: -0.02254004577 | N35: 0.03974449965 | Q35: 8.177358491
A36: 2021-02-12 | B36: 4312 | C36: 550 | D36: 8463 | E36: 1409 | F36: 2299 | G36: 736 | K36: -0.005076142132 | L36: 0.03773584906 | M36: -0.0093643919 | N36: -0.03822525597 | Q36: 7.84
A37: 2021-02-19 | B37: 4654 | C37: 554 | D37: 8608 | E37: 1374 | F37: 2299 | G37: 750 | K37: 0.0793135436 | L37: 0.007272727273 | M37: 0.01713340423 | N37: -0.02484031228 | Q37: 8.400722022
A38: 2021-02-26 | B38: 4922 | C38: 554 | D38: 8474 | E38: 1418 | F38: 2339 | G38: 753 | K38: 0.05758487323 | L38: 0 | M38: -0.0155669145 | N38: 0.03202328967 | Q38: 8.884476534
A39: 2021-03-05 | B39: 4369 | C39: 550 | D39: 8118 | E39: 1402 | F39: 2342 | G39: 749 | K39: -0.1123527022 | L39: -0.007220216606 | M39: -0.04201085674 | N39: -0.01128349788 | Q39: 7.943636364
A40: 2021-03-12 | B40: 4369 | C40: 550 | D40: 8118 | E40: 1402 | F40: 2342 | G40: 749 | K40: 0 | L40: 0 | M40: 0 | N40: 0 | Q40: 7.943636364
A41: 2021-03-19 | B41: 4212 | C41: 550 | D41: 7741 | E41: 1455 | F41: 2498 | G41: 740 | K41: =(B41-B40)/B40 -> -0.03593499657 | L41: 0 | M41: -0.04644000985 | N41: 0.03780313837 | Q41: 7.658181818
A42: 2021-03-26 | B42: 4212 | C42: 550 | D42: 7608 | E42: 1490 | F42: 2498 | G42: 715 | K42: 0 | L42: 0 | M42: -0.01718124273 | N42: 0.02405498282 | Q42: 7.658181818
A43: 2021-04-02 | B43: 5156 | C43: 545 | D43: 7476 | E43: 1440 | F43: 2498 | G43: 718 | K43: 0.2241215575 | L43: -0.009090909091 | M43: -0.01735015773 | N43: -0.03355704698 | Q43: 9.460550459
A44: 2021-04-09 | B44: 5223 | C44: 540 | D44: 7852 | E44: 1465 | F44: 2621 | G44: 745 | K44: 0.01299456943 | L44: -0.009174311927 | M44: 0.05029427501 | N44: 0.01736111111 | Q44: 9.672222222
A45: 2021-04-16 | B45: 4959 | C45: 550 | D45: 7978 | E45: 1408 | F45: 2623 | G45: 765 | K45: -0.05054566341 | L45: 0.01851851852 | M45: 0.01604686704 | N45: -0.03890784983 | Q45: 9.016363636
A46: 2021-04-23 | B46: 4840 | C46: 527 | D46: 7831 | E46: 1408 | F46: 2642 | G46: 781 | K46: -0.02399677354 | L46: -0.04181818182 | M46: -0.01842567059 | N46: 0 | Q46: 9.184060721
A47: 2021-04-30 | B47: 4842 | C47: 582 | D47: 7583 | E47: 1368 | F47: 3500 | G47: 851 | K47: 0.0004132231405 | L47: 0.1043643264 | M47: -0.03166900779 | N47: -0.02840909091 | Q47: 8.319587629
A48: 2021-05-07 | B48: 5015 | C48: 589 | D48: 8371 | E48: 1394 | F48: 3505 | G48: 851 | K48: 0.03572903759 | L48: 0.01202749141 | M48: 0.1039166557 | N48: 0.01900584795 | Q48: 8.514431239
A49: 2021-05-14 | B49: 5516 | C49: 710 | D49: 8976 | E49: 1521 | F49: 3550 | G49: 888 | K49: 0.0999002991 | L49: 0.2054329372 | M49: 0.07227332457 | N49: 0.09110473458 | Q49: 7.769014085
A50: 2021-05-21 | B50: 5516 | C50: 738 | D50: 9865 | E50: 1546 | F50: 3553 | G50: 888 | K50: 0 | L50: 0.03943661972 | M50: 0.09904188948 | N50: 0.0164365549 | Q50: 7.474254743
A51: 2021-05-28 | B51: 5374 | C51: 744 | D51: 10174 | E51: 1546 | F51: 3670 | G51: 946 | K51: -0.02574329224 | L51: 0.008130081301 | M51: 0.03132285859 | N51: 0 | Q51: 7.22311828
A52: 2021-06-04 | B52: 5560 | C52: 779 | D52: 10462 | E52: 1629 | F52: 3720 | G52: 991 | K52: 0.03461109044 | L52: 0.04704301075 | M52: 0.02830745036 | N52: 0.05368693402 | Q52: 7.137355584
A53: 2021-06-11 | B53: 6153 | C53: 779 | D53: 10522 | E53: 1715 | F53: 3988 | G53: 991 | K53: 0.1066546763 | L53: 0 | M53: 0.005735041101 | N53: 0.05279312462 | Q53: 7.898587933
A54: 2021-06-18 | B54: 6588 | C54: 931 | D54: 11196 | E54: 1583 | F54: 4607 | G54: 1121 | K54: 0.07069722087 | L54: 0.1951219512 | M54: 0.06405626307 | N54: -0.07696793003 | Q54: 7.076262084
A55: 2021-06-25 | B55: 6889 | C55: 1041 | D55: 11975 | E55: 1649 | F55: 4744 | G55: 1155 | K55: 0.04568913175 | L55: 0.1181525242 | M55: 0.06957842086 | N55: 0.041692988 | Q55: 6.617675312
A56: 2021-07-02 | B56: 6829 | C56: 1284 | D56: 12203 | E56: 1684 | F56: 5008 | G56: 1166 | K56: -0.008709536943 | L56: 0.2334293948 | M56: 0.01903966597 | N56: 0.02122498484 | Q56: 5.318535826
A57: 2021-07-09 | B57: 6348 | C57: 1326 | D57: 12795 | E57: 1740 | F57: 5336 | G57: 1185 | K57: -0.07043490994 | L57: 0.03271028037 | M57: 0.04851266082 | N57: 0.03325415677 | Q57: 4.787330317
A58: 2021-07-16 | B58: 5841 | C58: 1358 | D58: 12954 | E58: 1740 | F58: 5362 | G58: 1185 | K58: -0.07986767486 | L58: 0.02413273002 | M58: 0.01242672919 | N58: 0 | Q58: 4.301178203
A59: 2021-07-23 | B59: 6543 | C59: 1394 | D59: 13066 | E59: 1744 | F59: 5364 | G59: 1258 | K59: 0.1201848998 | L59: 0.0265095729 | M59: 0.008645978076 | N59: 0.002298850575 | Q59: 4.693687231
A60: 2021-07-30 | B60: 13666 | C60: 1408 | D60: 13352 | E60: 1710 | F60: 5624 | G60: 1256 | K60: =(B60-B59)/B59 -> 1.088644353 | L60: 0.01004304161 | M60: 0.02188887188 | N60: -0.01949541284 | Q60: 9.705965909
A61: 2021-08-06 | B61: 18555 | C61: =AVERAGE(C60,C62) -> 1434.5 | D61: =AVERAGE(D60,D62) -> 13502.5 | E61: =AVERAGE(E60,E62) -> 1680.5 | F61: =AVERAGE(F60,F62) -> 6007 | G61: =AVERAGE(G60,G62) -> 1213.5 | K61: 0.3577491585 | L61: 0.01882102273 | M61: 0.01127171959 | N61: -0.01725146199 | Q61: 12.93482049
A62: 2021-08-13 | B62: 15809 | C62: 1461 | D62: 13653 | E62: 1651 | F62: 6390 | G62: 1171 | K62: -0.1479924549 | L62: 0.01847333566 | M62: 0.01114608406 | N62: -0.01755429932 | Q62: 10.82067077
A63: 2021-08-20 | B63: 17507 | C63: 1358 | D63: 13698 | E63: 1650 | F63: 6435 | G63: 1154 | K63: 0.1074071731 | L63: -0.07049965777 | M63: 0.003295978906 | N63: -0.0006056935191 | Q63: 12.89175258
A64: 2021-08-27 | B64: 18425 | C64: 1398 | D64: 13787 | E64: 1647 | F64: 6461 | G64: 1142 | K64: 0.05243616839 | L64: 0.029455081 | M64: 0.006497298876 | N64: -0.001818181818 | Q64: 13.1795422
A65: =A64+7 -> 2021-09-03 | B65: 20586 | C65: 1433 | D65: 14074 | E65: 1647 | F65: 5776 | G65: 1168 | K65: 0.1172862958 | L65: 0.02503576538 | M65: 0.02081671139 | N65: 0 | Q65: 14.36566643
A66: 2021-09-10 | B66: 20143 | C66: 1448 | D66: 14287 | E66: 1626 | F66: 6160 | G66: 1180 | K66: -0.02151947926 | L66: 0.01046755059 | M66: 0.01513429018 | N66: -0.01275045537 | Q66: 13.9109116
A67: 2021-09-17 | B67: =AVERAGE(B66,B68) -> 19659 | C67: 1448 | D67: 14294 | E67: 1628 | F67: 6162 | G67: 1198 | K67: -0.02402819838 | L67: 0 | M67: 0.000489955904 | N67: 0.0012300123 | Q67: 13.57665746
A68: 2021-09-24 | B68: 19175 | C68: 1404 | D68: 14356 | E68: 1626 | F68: 6179 | G68: 1107 | K68: -0.02461976703 | L68: -0.03038674033 | M68: 0.004337484259 | N68: -0.001228501229 | Q68: 13.65740741
A69: 2021-10-01 | B69: 17970 | C69: 1383 | D69: 14558 | E69: 1625 | F69: 6192 | G69: 1105 | K69: -0.0628422425 | L69: -0.01495726496 | M69: 0.0140707718 | N69: -0.0006150061501 | Q69: 12.99349241
A70: 2021-10-08 | B70: 16004 | C70: 1320 | D70: 14807 | E70: 1604 | F70: 6209 | G70: 1116 | K70: -0.1094045632 | L70: -0.04555314534 | M70: 0.0171039978 | N70: -0.01292307692 | Q70: 12.12424242
A71: 2021-10-15 | B71: 17377 | C71: 1307 | D71: 14605 | E71: 1590 | F71: 6200 | G71: 1154 | K71: 0.08579105224 | L71: -0.009848484848 | M71: -0.01364219626 | N71: -0.008728179551 | Q71: 13.29533282
A72: 2021-10-22 | B72: 16884 | C72: 1315 | D72: 14555 | E72: 1582 | F72: 6157 | G72: 1189 | K72: -0.02837083501 | L72: 0.006120887529 | M72: -0.003423485108 | N72: -0.005031446541 | Q72: =B72/C72 -> 12.83954373
A73: 2021-10-29 | B73: 17478 | C73: 1068 | D73: 14062 | E73: 1591 | F73: 6161 | G73: 1189 | K73: 0.03518123667 | L73: -0.1878326996 | M73: -0.03387152181 | N73: 0.005689001264 | Q73: 16.36516854
A74: 2021-11-05 | B74: 18730 | C74: 1098 | D74: 13789 | E74: 1585 | F74: 6123 | G74: 1189 | K74: 0.07163290994 | L74: 0.02808988764 | M74: -0.01941402361 | N74: -0.003771213074 | Q74: 17.0582878
A75: 2021-11-12 | B75: 14885 | C75: 941 | D75: 13801 | E75: 1580 | F75: 6225 | G75: 1189 | K75: -0.205285638 | L75: -0.1429872495 | M75: 0.000870258902 | N75: -0.003154574132 | Q75: 15.81827843
A76: 2021-11-19 | B76: 14185 | C76: 865 | D76: 13400 | E76: 1577 | F76: 6272 | G76: 1187 | K76: -0.0470272086 | L76: -0.08076514346 | M76: -0.02905586552 | N76: -0.001898734177 | Q76: 16.39884393
A77: 2021-11-26 | B77: 14677 | C77: 853 | D77: 13475 | E77: 1583 | F77: 6232 | G77: 1186 | K77: 0.03468452591 | L77: -0.01387283237 | M77: 0.005597014925 | N77: 0.003804692454 | Q77: 17.2063306
A78: 2021-12-03 | B78: 14825 | C78: 887 | D78: 13500 | E78: 1578 | F78: 6214 | G78: 1183 | K78: 0.01008380459 | L78: 0.03985932005 | M78: 0.00185528757 | N78: -0.003158559697 | Q78: 16.71364149
A79: 2021-12-10 | B79: 14924 | C79: 887 | D79: 13564 | E79: 1544 | F79: 6283 | G79: 1187 | K79: 0.006677908938 | L79: 0 | M79: 0.004740740741 | N79: -0.02154626109 | Q79: 16.82525366
A80: 2021-12-17 | B80: 14924 | C80: 887 | D80: 13609 | E80: 1556 | F80: 6272 | G80: 1187 | K80: 0 | L80: 0 | M80: 0.003317605426 | N80: 0.007772020725 | Q80: =B80/C80 -> 16.82525366
A81: 2021-12-24 | B81: 14616 | C81: 875 | D81: 13642 | E81: 1547 | F81: 6290 | G81: 1187 | K81: -0.02063789869 | L81: -0.01352874859 | M81: 0.002424865898 | N81: -0.005784061697 | Q81: =B81/C81 -> 16.704
A82: 2021-12-31 | B82: 14070 | C82: 875 | D82: =AVERAGE(D81,D83) -> 13650 | E82: =AVERAGE(E81,E83) -> 1547 | F82: 6280 | G82: =AVERAGE(G81,G83) -> 1215.5 | K82: -0.03735632184 | L82: 0 | M82: 0.000586424278 | N82: 0 | Q82: =B82/C82 -> 16.08
A83: 2022-01-07 | B83: =AVERAGE(B82,B84) -> 14353.5 | C83: =AVERAGE(C82,C84) -> 979.5 | D83: 13658 | E83: 1547 | F83: 6280 | G83: 1244 | K83: 0.02014925373 | L83: 0.1194285714 | M83: 0.0005860805861 | N83: 0 | Q83: =B83/C83 -> 14.65390505
A84: 2022-01-14 | B84: 14637 | C84: 1084 | D84: 14028 | E84: 1524 | F84: 6233 | G84: 1244 | K84: 0.01975128018 | L84: 0.1066870852 | M84: 0.02709034998 | N84: -0.01486748546 | Q84: =B84/C84 -> 13.50276753
A85: 2022-01-21 | B85: 15145 | C85: 1104 | D85: 14053 | E85: 1452 | F85: 6292 | G85: 1245 | K85: 0.03470656555 | L85: 0.0184501845 | M85: 0.001782149986 | N85: -0.04724409449 | Q85: 13.7182971
A86: =A85+7 -> 2022-01-28 | B86: 15485 | C86: 1089 | D86: 13687 | E86: 1455 | F86: 6315 | G86: 1244 | K86: 0.02244965335 | L86: -0.01358695652 | M86: -0.02604426101 | N86: 0.002066115702 | Q86: 14.2194674
A87: =A86+7 -> 2022-02-04 | B87: 15218 | C87: 1086 | D87: 13686 | E87: 1445 | F87: 6455 | G87: 1276 | K87: -0.01724249273 | L87: -0.002754820937 | M87: -7.306202966e-05 | N87: -0.006872852234 | Q87: 14.01289134
A88: =A87+7 -> 2022-02-11 | B88: 15218 | C88: 1009 | D88: 13665 | E88: 1396 | F88: 6453 | G88: 1235 | K88: 0 | L88: -0.07090239411 | M88: -0.00153441473 | N88: -0.0339100346 | Q88: 15.08225966
A89: =A88+7 -> 2022-02-18 | B89: 15615 | C89: 965 | D89: 14312 | E89: 1402 | F89: 6514 | G89: 1247 | K89: =(B89-B88)/B88 -> 0.02608752793 | L89: -0.04360753221 | M89: 0.04734723747 | N89: 0.004297994269 | Q89: 16.18134715
A90: =A89+7 -> 2022-02-25 | B90: 15883 | C90: 965 | D90: 14269 | E90: 1439 | F90: 6518 | G90: 1198 | K90: 0.01716298431 | L90: 0 | M90: -0.003004471772 | N90: 0.02639087019 | Q90: 16.45906736
A91: 2022-03-04 | B91: 16155 | C91: 983 | D91: 13585 | E91: 1439 | F91: 6476 | G91: 1180 | K91: 0.01712522823 | L91: 0.01865284974 | M91: -0.04793608522 | N91: 0 | Q91: 16.43438454
A92: 2022-03-11 | B92: 16341 | C92: 1002 | D92: 13406 | E92: 1474 | F92: 6494 | G92: 1157 | K92: 0.01151346332 | L92: 0.01932858596 | M92: -0.01317629739 | N92: 0.02432244614 | Q92: 16.30838323
A93: =A92+7 -> 2022-03-18 | B93: 16053 | C93: 1037 | D93: 12783 | E93: 1515 | F93: 6494 | G93: 1167 | K93: -0.01762438039 | L93: 0.03493013972 | M93: -0.04647172908 | N93: 0.02781546811 | Q93: 15.48023144
I95: Since Jan. 1, 2021 | J95: Change | K95: =(B93-B$30) -> 11858 | L95: =(C93-C$30) -> 519 | M95: =(D93-D$30) -> 6177 | N95: =(E93-E$30) -> 202
J96: % Change | K96: =K95/B$30 -> 2.826698451 | L96: =L95/C$30 -> 1.001930502 | M96: =M95/D$30 -> 0.9350590372 | N96: =N95/E$30 -> 0.1538461538
J98: Tonnes per FEU | K98: 15 | L98: 25 | M98: 15 | N98: 20
J99: Change since Jan. 1, 2021 | K99: =K95/K98 -> 790.5333333 | L99: =L95/L98 -> 20.76 | M99: 411.8 | N99: 10.1
J100: Rate per tonne | K100: =B93/K98 -> 1070.2 | L100: =C93/L98 -> 41.48 | M100: 852.2 | N100: 75.75
A106: Insert above yellow

Sheet Dry Bulk Voyage Rates
A1: Index
A3: Weekly Rates
A5: Date | B5: Gulf-Japan | C5: PNW-Japan | D5: Gulf-PNW Spread
A6: 2019-06-05 | B6: 48.93 | C6: 26.55 | D6: 22.38
A7: 2019-06-12 | B7: 47.69 | C7: 26.15 | D7: 21.54
A8: 2019-06-19 | B8: 46.36 | C8: 25.21 | D8: 21.15
A9: 2019-06-26 | B9: 48.26 | C9: 25.55 | D9: 22.71
A10: 2019-07-03 | B10: 52.21 | C10: 26.64 | D10: 25.57
A11: 2019-07-10 | B11: 57.12 | C11: 28.29 | D11: 28.83
A12: 2019-07-17 | B12: 61.49 | C12: 30.59 | D12: 30.9
A13: 2019-07-24 | B13: 62.75 | C13: 31.17 | D13: 31.58
A14: 2019-07-31 | B14: 58.95 | C14: 29.06 | D14: 29.89
A15: 2019-08-07 | B15: 56.49 | C15: 27.69 | D15: 28.8
A16: 2019-08-14 | B16: 59.05 | C16: 29.42 | D16: 29.63
A17: 2019-08-21 | B17: 59.98 | C17: 30.02 | D17: 29.96
A18: 2019-08-28 | B18: 61.52 | C18: 31.27 | D18: 30.25
A19: 2019-09-04 | B19: 60.73 | C19: 31.7 | D19: 29.03
A20: 2019-09-11 | B20: 61.26 | C20: 30.99 | D20: 30.27
A21: 2019-09-18 | B21: 63.07 | C21: 30.64 | D21: 32.43
A22: 2019-09-25 | B22: 59.18 | C22: 29.39 | D22: 29.79
A23: 2019-10-02 | B23: 55.85 | C23: 28.26 | D23: 27.59
A24: 2019-10-09 | B24: 56.01 | C24: 28.95 | D24: 27.06
A25: 2019-10-16 | B25: 55.02 | C25: 29.74 | D25: 25.28
A26: 2019-10-23 | B26: 53.01 | C26: 28.58 | D26: 24.43
A27: 2019-10-30 | B27: 50.83 | C27: 27.62 | D27: 23.21
A28: 2019-11-06 | B28: 49.05 | C28: 26.23 | D28: 22.82
A29: 2019-11-13 | B29: 44.86 | C29: 24.38 | D29: 20.48
A30: 2019-11-20 | B30: 43.58 | C30: 23.69 | D30: 19.89
A31: 2019-11-27 | B31: 42.52 | C31: 23.9 | D31: 18.62
A32: 2019-12-04 | B32: 44.03 | C32: 24.4 | D32: 19.63
A33: 2019-12-11 | B33: 46.18 | C33: 25.29 | D33: 20.89
A34: 2019-12-18 | B34: 46.23 | C34: 22.93 | D34: 23.3
A35: 2019-12-25 | B35: 45.04 | C35: 20.7 | D35: 24.34
A36: 2020-01-01 | B36: 45.04 | C36: 20.7 | D36: 24.34
A37: 2020-01-08 | B37: 41.31 | C37: 19.07 | D37: 22.24
A38: 2020-01-15 | B38: 41.52 | C38: 19 | D38: 22.52
A39: 2020-01-22 | B39: 40.21 | C39: 19.83 | D39: 20.38
A40: 2020-01-29 | B40: 38.88 | C40: 18.72 | D40: 20.16
A41: 2020-02-05 | B41: 36.66 | C41: 17.5 | D41: 19.16
A42: 2020-02-12 | B42: 37.87 | C42: 18.47 | D42: 19.4
A43: 2020-02-19 | B43: 39.35 | C43: 19.73 | D43: 19.62
A44: 2020-02-26 | B44: 41.22 | C44: 20.34 | D44: 20.88
A45: 2020-03-04 | B45: 42.9 | C45: 20.6 | D45: 22.3
A46: 2020-03-11 | B46: 43.09 | C46: 19.6 | D46: 23.49
A47: 2020-03-18 | B47: 39.32 | C47: 18.2 | D47: 21.12
A48: 2020-03-25 | B48: 36.89 | C48: 17.21 | D48: 19.68
A49: 2020-04-01 | B49: 36.12 | C49: 17.49 | D49: 18.63
A50: 2020-04-08 | B50: 36.77 | C50: 18.79 | D50: 17.98
A51: 2020-04-15 | B51: 36.44 | C51: 18.91 | D51: 17.53
A52: 2020-04-22 | B52: 35.82 | C52: 17.84 | D52: 17.98
A53: 2020-04-29 | B53: 33.54 | C53: 16.93 | D53: 16.61
A54: 2020-05-06 | B54: 33.19 | C54: 17.61 | D54: 15.58
A55: 2020-05-13 | B55: 32.19 | C55: 18.18 | D55: 14.01
A56: 2020-05-20 | B56: 32.49 | C56: 18.34 | D56: 14.15
A57: 2020-05-27 | B57: 34.07 | C57: 19.07 | D57: 15
A58: 2020-06-03 | B58: 36.79 | C58: 19.62 | D58: 17.17
A59: 2020-06-10 | B59: 37.04 | C59: 19.79 | D59: 17.25
A60: 2020-06-17 | B60: 40.4 | C60: 21.06 | D60: 19.34
A61: 2020-06-24 | B61: 44.16 | C61: 22.24 | D61: 21.92
A62: 2020-07-01 | B62: 43.8 | C62: 19.7 | D62: 24.1
A63: 2020-07-08 | B63: 49.47 | C63: 22.07 | D63: 27.4
A64: 2020-07-15 | B64: 52.48 | C64: 22.8 | D64: 29.68
A65: 2020-07-22 | B65: 48.33 | C65: 21.87 | D65: 26.46
A66: 2020-07-29 | B66: 43.78 | C66: 20.24 | D66: 23.54
A67: 2020-08-05 | B67: 42.24 | C67: 18.72 | D67: 23.52
A68: 2020-08-12 | B68: 47.27 | C68: 20.08 | D68: 27.19
A69: 2020-08-19 | B69: 48.55 | C69: 20.06 | D69: 28.49
A70: 2020-08-26 | B70: 46.34 | C70: 19.85 | D70: 26.49
A71: 2020-09-02 | B71: 45.12 | C71: 20.04 | D71: 25.08
A72: 2020-09-09 | B72: 41.15 | C72: 18.67 | D72: 22.48
A73: 2020-09-16 | B73: 39.95 | C73: 18.51 | D73: 21.44
A74: 2020-09-23 | B74: 41.3 | C74: 18.7 | D74: 22.6
A75: 2020-09-30 | B75: 41.91 | C75: 18.67 | D75: 23.24
A76: 2020-10-07 | B76: 42.63 | C76: 18.71 | D76: 23.92
A77: 2020-10-14 | B77: 43.05 | C77: 19.02 | D77: 24.03
A78: 2020-10-21 | B78: 40.08 | C78: 18.58 | D78: 21.5
A79: 2020-10-28 | B79: 42.04 | C79: 18.26 | D79: 23.78
A80: 2020-11-04 | B80: 41.28 | C80: 17.38 | D80: 23.9
A81: 2020-11-11 | B81: 39.7 | C81: 17.53 | D81: 22.17
A82: 2020-11-18 | B82: 40.96 | C82: 18.36 | D82: 22.6
A83: 2020-11-25 | B83: 42.81 | C83: 19.41 | D83: 23.4
A84: 2020-12-02 | B84: 42.15 | C84: 19.65 | D84: 22.5
A85: 2020-12-09 | B85: 42.09 | C85: 19.84 | D85: 22.25
A86: 2020-12-16 | B86: 43.29 | C86: 20.28 | D86: 23.01
A87: 2020-12-23 | B87: 42.02 | C87: 18.94 | D87: 23.08
A88: 2020-12-30 | B88: 42.14 | C88: 18.8 | D88: 23.34
A89: 2021-01-06 | B89: 42.6 | C89: 19.45 | D89: 23.15
A90: 2021-01-13 | B90: 48.15 | C90: 20.79 | D90: 27.36
A91: 2021-01-20 | B91: 46.7 | C91: 21.49 | D91: 25.21
A92: 2021-01-27 | B92: 47.28 | C92: 21.82 | D92: 25.46
A93: 2021-02-03 | B93: 47.69 | C93: 21.15 | D93: 26.54
A94: 2021-02-10 | B94: 50.13 | C94: 21.71 | D94: 28.42
A95: 2021-02-17 | B95: 57.59 | C95: 26.16 | D95: 31.43
A96: 2021-02-24 | B96: 54.78 | C96: 27.32 | D96: 27.46
A97: 2021-03-03 | B97: 52.04 | C97: 26.63 | D97: 25.41
A98: 2021-03-10 | B98: 52.55 | C98: 28.05 | D98: 24.5
A99: 2021-03-17 | B99: 56.66 | C99: 30.24 | D99: 26.42
A100: 2021-03-24 | B100: 60.56 | C100: 31.38 | D100: 29.18
A101: 2021-03-31 | B101: 57.47 | C101: 29.27 | D101: 28.2
A102: 2021-04-07 | B102: 55.5 | C102: 27.58 | D102: 27.92
A103: 2021-04-14 | B103: 51.34 | C103: 25.34 | D103: 26
A104: 2021-04-21 | B104: 61.53 | C104: 28.99 | D104: 32.54
A105: 2021-04-28 | B105: 59.11 | C105: 29.91 | D105: 29.2
A106: 2021-05-05 | B106: 63.31 | C106: 31.69 | D106: 31.62
A107: 2021-05-12 | B107: 65.03 | C107: 32.79 | D107: 32.24
A108: 2021-05-19 | B108: 62.8 | C108: 31.42 | D108: 31.38
A109: 2021-05-26 | B109: 60.17 | C109: 31.1 | D109: 29.07
A110: 2021-06-02 | B110: 65.25 | C110: 32.61 | D110: 32.64
A111: 2021-06-09 | B111: 70.21 | C111: 32.77 | D111: 37.44
A112: 2021-06-16 | B112: 74.88 | C112: 36.34 | D112: 38.54
A113: 2021-06-23 | B113: 74.17 | C113: 35.14 | D113: 39.03
A114: 2021-06-30 | B114: 87.53 | C114: 36.34 | D114: 51.19
A115: 2021-07-07 | B115: 89.58 | C115: 36.28 | D115: 53.3
A116: 2021-07-14 | B116: 87.54 | C116: 35.02 | D116: 52.52
A117: 2021-07-21 | B117: 83.36 | C117: 33.76 | D117: 49.6
A118: 2021-07-28 | B118: 81.97 | C118: 33.8 | D118: 48.17
A119: 2021-08-04 | B119: 80.08 | C119: 33.74 | D119: 46.34
A120: 2021-08-11 | B120: 80.43 | C120: 34.515 | D120: 46.57
A121: 2021-08-18 | B121: 82.09 | C121: 35.29 | D121: 46.8
A122: 2021-08-25 | B122: 83.58 | C122: 36.76 | D122: 46.82
A123: 2021-09-01 | B123: 80.25 | C123: 38.38 | D123: 41.87
A124: 2021-09-08 | B124: 78.13 | C124: 36.55 | D124: 41.58
A125: 2021-09-15 | B125: 82.98 | C125: 37.83 | D125: 45.15
A126: 2021-09-22 | B126: 85.3 | C126: 38.57 | D126: 46.73
A127: 2021-09-29 | B127: 86.01 | C127: 40.29 | D127: 45.72
A128: 2021-10-06 | B128: 83.8 | C128: 41.19 | D128: 44.155
A129: 2021-10-13 | B129: 84.68 | C129: 42.09 | D129: 42.59
A130: 2021-10-20 | B130: 88.26 | C130: 43.2 | D130: 45.06
A131: 2021-10-27 | B131: 85.81 | C131: 40.43 | D131: 45.38
A132: 2021-11-03 | B132: 79.3 | C132: 36.12 | D132: 44.055
A133: 2021-11-10 | B133: 74.54 | C133: 31.81 | D133: 42.73
A134: 2021-11-17 | B134: 66.42 | C134: 28.66 | D134: 37.76
A135: 2021-11-24 | B135: 63.48 | C135: 28.31 | D135: 35.17
A136: 2021-12-01 | B136: 70.63 | C136: 28.93 | D136: 41.7
A137: 2021-12-08 | B137: 76.25 | C137: 31.62 | D137: 44.63
A138: 2021-12-15 | B138: 69.075 | C138: 29.47 | D138: 38.935
A139: 2021-12-22 | B139: 61.9 | C139: 28.66 | D139: 33.24
A140: 2021-12-29 | B140: 64.77 | C140: 29.71 | D140: 35.06
A141: 2022-01-05 | B141: 70.85 | C141: 32.35 | D141: 38.5
A142: 2022-01-12 | B142: 68.08 | C142: 30 | D142: 38.08
A143: 2022-01-19 | B143: 64.64 | C143: 28.14 | D143: 36.5
A144: 2022-01-26 | B144: 59.29 | C144: 28.67 | D144: 30.62
A145: 2022-02-02 | B145: 56.48 | C145: 29.1 | D145: 27.38
A146: 2022-02-09 | B146: 64.29 | C146: 31.33 | D146: 32.96
A147: 2022-02-16 | B147: 65.83 | C147: 33.8 | D147: 33.7
A148: 2022-02-23 | B148: 70.04 | C148: 35.6 | D148: 34.44
A149: 2022-03-02 | B149: 70.75 | C149: 36.47 | D149: 38.015
A150: 2022-03-09 | B150: 84.53 | C150: 42.94 | D150: 41.59
A151: 2022-03-16 | B151: 82.24 | C151: 41.685 | D151: 40.555
A152: 2022-03-23 | B152: 79.95 | C152: 40.43 | D152: 39.52
A153: 2022-03-30 | B153: 80.29 | C153: 38.96 | D153: 41.33
A154: 2022-04-06 | B154: 80.46 | C154: 37.984 | D154: 42.476
A155: 2022-04-13 | B155: 80.16 | C155: 35.6 | D155: 43.138
A156: 2022-04-20 | B156: 83.5 | C156: 38.24 | D156: 45.26
A157: 2022-04-27 | B157: 80.49 | C157: 36.69 | D157: 43.8
A158: 2022-05-04 | B158: 82.83 | C158: 36.8 | D158: 46.03
A159: 2022-05-11 | B159: 82.6 | C159: 38.31 | D159: 44.29
A160: 2022-05-18 | B160: 85.09 | C160: 40.05 | D160: 45.04
A161: 2022-05-25 | B161: 81.99 | C161: 39.75 | D161: 42.24

Sheet Income Data
A1: Index
B4: Revenues of Major Cargo Carriers (Million USD)
C5: 2017 | D5: 2018 | E5: 2019 | F5: 2020 | G5: 2021 | H5: 2020-2021 growth
B6: Maersk | C6: 31189 | D6: 39257 | E6: 38890 | F6: 39470 | G6: 61787 | H6: =(G6-F6)/(F6) -> 0.5654167722
B7: CMA CGM | C7: 21116 | D7: 23476 | E7: 30254 | F7: 31445 | G7: 55980 | H7: =(G7-F7)/(F7) -> 0.7802512323
B8: Hapag-Llyod | C8: 11286 | D8: 13726 | E8: 14115 | F8: 14577 | G8: 26356 | H8: =(G8-F8)/(F8) -> 0.8080537834
B9: Evergreen | C9: 4945.993666 | D9: 5610.976041 | E9: 6164.68765 | F9: 6999.124344 | G9: 17468.36918 | H9: =(G9-F9)/(F9) -> 1.495793519
B10: Yang Ming | C10: 4305.768541 | D10: 4702.269914 | E10: 4824.365217 | F10: 5113.031357 | G10: 11911.72666 | H10: =(G10-F10)/(F10) -> 1.329679955
B11: Source: Company financial disclosures
B13: Net Income of Major Cargo Carriers (Million USD)
C14: 2017 | D14: 2018 | E14: 2019 | F14: 2020 | G14: 2021 | H14: 2020-2021 growth
B15: Maersk | C15: -214 | D15: -357 | E15: 967 | F15: 3307 | G15: 18730 | H15: =(G15-F15)/(F15) -> 4.663743574
B16: CMA CGM | C16: 730.7 | D16: 68.3 | E16: -218.6 | F16: 1775.7 | G16: 17894 | H16: =(G16-F16)/(F16) -> 9.077152672
B17: Hapag-Llyod | C17: 35 | D17: 54 | E17: 418 | F17: 1068 | G17: 10750 | H17: =(G17-F17)/(F17) -> 9.065543071
B18: Evergreen | C18: 230.1065673 | D18: 9.747148793 | E18: 3.65430765 | F18: 823.5158617 | G18: 8532.191387 | H18: 9.360688584
B19: Yang Ming | C19: 10.54449795 | D19: -218.5151622 | E19: -139.3811148 | F19: 404.8122091 | G19: 5899.657922 | H19: 13.5738142
B20: Source: Company financial disclosures
B22: Revenues of Major Bulk Carriers (Million USD)
C23: 2017 | D23: 2018 | E23: 2019 | F23: 2020 | G23: 2021 | H23: 2020-2021 growth
B24: Diana Shipping | C24: 161.897 | D24: 226.189 | E24: 220.728 | F24: 169.733 | G24: 214.203 | H24: 0.261999729
B25: Eagle Bulk Shipping | C25: 236.785 | D25: 310.094 | E25: 292.378 | F25: 275.134 | G25: 594.538 | H25: 1.160903414
B26: Genco Shipping | C26: 209.698 | D26: 367.522 | E26: 389.496 | F26: 355.56 | G26: 547.129 | H26: 0.5387810777
B27: Golden Ocean Group Ltd | C27: 460 | D27: 656 | E27: 706 | F27: 608 | G27: 1203 | H27: 0.9786184211
B28: Navios Maritime Holdings | C28: 463.049 | D28: 505.686 | E28: 482.449 | F28: 416.718 | G28: 585.818 | H28: 0.4057900067 | K28: Source: Buyupside.com Note: Portfolio computation includes twelve bulk shipping companies.
B29: Star Bulk Carriers Ltd | C29: 332 | D29: 650 | E29: 819 | F29: 692 | G29: 1427 | H29: 1.062138728
B30: Capital Product Partners | C30: 264.323 | D30: 131.975 | E30: 122.754 | F30: 140.865 | G30: 184.665 | H30: 0.3109360026
B31: SFL Holdings | C31: 380.878 | D31: 418.712 | E31: 458.849 | F31: 471.047 | G31: 513.396 | H31: 0.08990397986
B32: Source: Company financial disclosures. Note: Capital Product Partners and SFL Holdings are oil tanker companies.
B34: Net Income of Major Bulk Carriers (Million USD)
C35: 2017 | D35: 2018 | E35: 2019 | F35: 2020 | G35: 2021 | H35: 2020-2021 growth
B36: Diana Shipping | C36: -511.714 | D36: 16.58 | E36: -10.535 | F36: -134.197 | G36: 57.394 | H36: =(G36-F36)/ABS(F36) -> 1.427684673
B37: Eagle Bulk Shipping | C37: -43.797 | D37: 12.575 | E37: -21.697 | F37: -35.063 | G37: 184.898 | H37: 6.273308046
B38: Genco Shipping | C38: -58.725 | D38: -32.94 | E38: -55.985 | F38: -225.573 | G38: 182.007 | H38: 1.806865183
B39: Golden Ocean Group Ltd | C39: -2 | D39: 85 | E39: 37 | F39: -138 | G39: 527 | H39: 4.81884058
B40: Navios Maritime Holdings | C40: -164.787 | D40: -266.263 | E40: -180.334 | F40: -188.605 | G40: 91.901 | H40: 1.48726704
B41: Star Bulk Carriers Ltd | C41: -10 | D41: 58 | E41: -16 | F41: 10 | G41: 681 | H41: 67.1
B42: Capital Product Partners | C42: 37.826 | D42: -7.259 | E42: 24.185 | F42: 29.809 | G42: 96.388 | H42: 2.233520078
B43: SFL Holdings | C43: 101.209 | D43: 73.622 | E43: 89.177 | F43: -224.425 | G43: 164.343 | H43: 1.732284728
B44: Source: Company financial disclosures. Note: Note: Capital Product Partners and SFL Holdings are oil tanker companies.

Sheet Container Generation Data
A1: Index
A4: Generational Development of Container Vessels (NDNS of US, Corps, S&P Global)
A5: Generation | B5: Year | C5: TEU1 | D5: TEU2 | E5: Dist. Feet | F5: Dist. Miles
A6: I | B6: 1956+ | C6: 58 | D6: 150 | E6: =D6*20 -> 3000 | F6: =E6/5280 -> 0.5681818182
A7: II | B7: 1970s | C7: 1500 | D7: 3000 | E7: 60000 | F7: 11.36363636
A8: III | B8: 1980s | C8: 2500 | D8: 4500 | E8: 90000 | F8: 17.04545455
A9: IV | B9: 1990s | C9: 3500 | D9: 5000 | E9: 100000 | F9: 18.93939394
A10: V | B10: 2000s | C10: 5500 | D10: 8800 | E10: 176000 | F10: 33.33333333
A11: VI | B11: 2005s | C11: 10000 | D11: 14000 | E11: 280000 | F11: 53.03030303 | G11: 13000
A12: VII | B12: 2007+ | C12: 12000 | D12: 15000 | E12: 300000 | F12: 56.81818182 | G12: 14000
A13: VIII | B13: 2011 | C13: 15000 | D13: 18000 | E13: 360000 | F13: 68.18181818 | G13: 18000
B14: 2014 | C14: 18000 | D14: 19000 | E14: 380000 | F14: 71.96969697 | G14: 19000
B15: 2015 | C15: 19000 | D15: 20000 | E15: 400000 | F15: 75.75757576 | G15: 20000
A16: IX | B16: 2019 | C16: 20000 | D16: 23756 | E16: 475120 | F16: 89.98484848 | G16: 24000

Sheet Fleet Deadweight
A1: Index
A5: World Fleet Statistics - 2020
A6: STATISTICAL NOTES 3&4
A7: 3. Shiptypes - Cargo Carrying Ships
A8: The following is a summary of cargo carrying shiptype categories in descending deadweight order:-
A9: ShipType Category | B9: No. | C9: Dwt | D9: GT | E9: Age
A10: BULK DRY | B10: 10966 | C10: 862588765 | D10: 471297827 | E10: 9.741017691
A11: CRUDE OIL TANKER | B11: 2952 | C11: 484727847 | D11: 258258762 | E11: 11.17276423
A12: CONTAINER | B12: 5341 | C12: 283265783 | D12: 252826767 | E12: 12.47668976
A13: CHEMICAL | B13: 5744 | C13: 123021540 | D13: 76154234 | E13: 13.89258357
A14: GENERAL CARGO | B14: 15071 | C14: 84212590 | D14: 57821510 | E14: 25.25897419
A15: OIL PRODUCTS TANKER | B15: 5847 | C15: 53249378 | D15: 32899096 | E15: 22.99042244
A16: LNG TANKER | B16: 586 | C16: 48553656 | D16: 62134719 | E16: 10.53071672
A17: LPG TANKER | B17: 1519 | C17: 27064045 | D17: 23761512 | E17: 15.5036208
A18: RO-RO CARGO | B18: 2929 | C18: 19929932 | D18: 50411972 | E18: 17.98327074
A19: OTHER BULK DRY | B19: 1235 | C19: 12560167 | D19: 9370404 | E19: 21.51821862
A20: SELF-DISCHARGING BULK DRY | B20: 140 | C20: 5645916 | D20: 3374029 | E20: 31.01428571
A21: OTHER DRY CARGO | B21: 344 | C21: 5164286 | D21: 4938224 | E21: 23.99709302
A22: PASSENGER/RO-RO CARGO | B22: 3310 | C22: 4557533 | D22: 18379223 | E22: 26.87280967
A23: REFRIGERATED CARGO | B23: 897 | C23: 4341650 | D23: 4001006 | E23: 31.2296544
A24: PASSENGER (CRUISE) | B24: 616 | C24: 2487134 | D24: 24474392 | E24: 23.55194805
A25: BULK DRY/OIL | B25: 61 | C25: 1826115 | D25: 1095419 | E25: 26.13114754
A26: PASSENGER SHIP | B26: 3818 | C26: 731900 | D26: 1677232 | E26: 28.33761131
A27: OTHER LIQUIDS | B27: 179 | C27: 519454 | D27: 409119 | E27: 36.82681564
A28: PASSENGER/GENERAL CARGO | B28: 355 | C28: 218368 | D28: 517153 | E28: 30.01971831
A29: TOTAL CARGO CARRYING | B29: =SUM(B9:B28) -> 61910 | C29: =SUM(C9:C28) -> 2024666059 | D29: =SUM(D9:D28) -> 1353802600 | E29: =AVERAGE(E9:E28) -> 22.0552296
A31: Oil tankers and bulk dry cargo types have been the two major components of the world’s cargo carrying fleet for many years - the following table shows their deadweight values since 1995, both of which continue to grow steadily.
A33: Year | B33: oil | C33: bulk dry | D33: container | E33: general cargo
A34: 1995 | B34: 265.8 | C34: 227 | D34: 43.4 | E34: 81.9
A35: 1996 | B35: 270.3 | C35: 239.2 | D35: 48.6 | E35: 82
A36: 1997 | B36: 271 | C36: 249.8 | D36: 55.5 | E36: 80.7
A37: 1998 | B37: 277.6 | C37: 246.3 | D37: 61 | E37: 79.4
A38: 1999 | B38: 282 | C38: 248.4 | D38: 63.4 | E38: 79.5
A39: 2000 | B39: 283.8 | C39: 255 | D39: 69.1 | E39: 78
A40: 2001 | B40: 284.1 | C40: 268.1 | D40: 76.6 | E40: 75.4
A41: 2002 | B41: 280.4 | C41: 274.2 | D41: 83.9 | E41: 73.4
A42: 2003 | B42: 288.4 | C42: 280.9 | D42: 90.5 | E42: 72
A43: 2004 | B43: 300.1 | C43: 299.6 | D43: 99.2 | E43: 71.5
A44: 2005 | B44: 316.9 | C44: 323.2 | D44: 111.7 | E44: 73.2
A45: 2006 | B45: 331.7 | C45: 346.7 | D45: 128.3 | E45: 75
A46: 2007 | B46: 347.2 | C46: 369.9 | D46: 144.7 | E46: 78.3
A47: 2008 | B47: 356.6 | C47: 395 | D47: 161.9 | E47: 80.4
A48: 2009 | B48: 380.8 | C48: 433.8 | D48: 169.1 | E48: 80
A49: 2010 | B49: 392.6 | C49: 509.1 | D49: 183.9 | E49: 81.3
A50: 2011 | B50: 418.9 | C50: 599.8 | D50: 198 | E50: 78.5
A51: 2012 | B51: 432.5 | C51: 645.5 | D51: 206.1 | E51: 75.8
A52: 2013 | B52: 439.5 | C52: 685.3 | D52: 215.4 | E52: 76.8
A53: 2014 | B53: 443.1 | C53: 718.7 | D53: 228.4 | E53: 76.9
A54: 2015 | B54: 449.2 | C54: 735.6 | D54: 244.8 | E54: 77.2
A55: 2016 | B55: 471.6 | C55: 755.3 | D55: 245.2 | E55: 76.5
A56: 2017 | B56: 490.8 | C56: 778.8 | D56: 253.7 | E56: 76.2
A57: 2018 | B57: 498.4 | C57: 803.3 | D57: 266.5 | E57: 78.3
A58: 2019 | B58: 529.4 | C58: 843.4 | D58: 276.7 | E58: 80.4
A59: 2020 | B59: 537.9 | C59: 862.6 | D59: 283.3 | E59: 84.2
A62: More specialised carriers in the chemical and liquefied gas markets demonstrate steady increase in fleet size, while the refrigerated fleets remains static.
A64: Year | B64: refrigerated | C64: ro ro | D64: chemical | E64: liquefied gas
A65: 1995 | B65: 7.6 | C65: 14.7 | D65: 19.9 | E65: 14.7
A66: 1996 | B66: 7.6 | C66: 15.1 | D66: 21.4 | E66: 15.4
A67: 1997 | B67: 7.6 | C67: 15.4 | D67: 22.6 | E67: 16
A68: 1998 | B68: 7.6 | C68: 16 | D68: 24.7 | E68: 16.4
A69: 1999 | B69: 7.5 | C69: 13 | D69: 26.8 | E69: 17.1
A70: 2000 | B70: 7.4 | C70: 13.7 | D70: 28.7 | E70: 18.5
A71: 2001 | B71: 7.3 | C71: 13.7 | D71: 30.4 | E71: 19
A72: 2002 | B72: 7.2 | C72: 13.7 | D72: 32.4 | E72: 19.5
A73: 2003 | B73: 6.8 | C73: 14 | D73: 36.4 | E73: 20.9
A74: 2004 | B74: 6.7 | C74: 14.5 | D74: 40.9 | E74: 22.5
A75: 2005 | B75: 6.6 | C75: 15.3 | D75: 46.1 | E75: 24.2
A76: 2006 | B76: 6.6 | C76: 16.1 | D76: 51.3 | E76: 26.9
A77: 2007 | B77: 6.7 | C77: 17.3 | D77: 59.2 | E77: 30
A78: 2008 | B78: 6.5 | C78: 18.5 | D78: 68.9 | E78: 36.4
A79: 2009 | B79: 6.4 | C79: 18.2 | D79: 76.9 | E79: 40.7
A80: 2010 | B80: 6.1 | C80: 18.2 | D80: 81.8 | E80: 43.4
A81: 2011 | B81: 5.7 | C81: 18.9 | D81: 85.5 | E81: 44.6
A82: 2012 | B82: 5.1 | C82: 18.9 | D82: 84.6 | E82: 44.4
A83: 2013 | B83: 5 | C83: 18.8 | D83: 87.4 | E83: 46.6
A84: 2014 | B84: 4.9 | C84: 19 | D84: 92.2 | E84: 49.7
A85: 2015 | B85: 4.9 | C85: 19.6 | D85: 100 | E85: 54.5
A86: 2016 | B86: 4.8 | C86: 19.6 | D86: 106.4 | E86: 59.9
A87: 2017 | B87: 4.5 | C87: 19.9 | D87: 107.7 | E87: 63.7
A88: 2018 | B88: 4.4 | C88: 20.1 | D88: 111.5 | E88: 68.4
A89: 2019 | B89: 4.4 | C89: 20.2 | D89: 119.4 | E89: 72.5
A90: 2020 | B90: 4.3 | C90: 19.9 | D90: 123 | E90: 75.7
A92: 4. Cargo Carrying Ships
A93: The following time series gives, in deadweight, a summary of shiptype statistics - the current fleet and order book (as at the end of year), completions and orders reported (during the year).
C94: 2015 | D94: 2016 | E94: 2017 | F94: 2018 | G94: 2019 | H94: 2020
A95: oil | B95: current fleet | C95: 449.3 | D95: 471.6 | E95: 490.8 | F95: 498.4 | G95: 529.4 | H95: 538.0
B96: order book | C96: 81.4 | D96: 61.4 | E96: 70 | F96: 48.9 | G96: 42.9 | H96: 47.3
B97: completions | C97: 11.8 | D97: 26.3 | E97: 26.4 | F97: 24.5 | G97: 32 | H97: 18.9
B98: orders reported | C98: 42.7 | D98: 7.2 | E98: 6.6 | F98: 17.7 | G98: 21.2 | H98: 19.5
A99: bulk dry | B99: current fleet | C99: 735.6 | D99: 755.3 | E99: 778.8 | F99: 803.3 | G99: 843.4 | H99: 862.6
B100: order book | C100: 108.9 | D100: 69.2 | E100: 93.5 | F100: 92.2 | G100: 71.2 | H100: 52
B101: completions | C101: 47.4 | D101: 46.4 | E101: 46.4 | F101: 27.4 | G101: 40.1 | H101: 47.8
B102: orders reported | C102: 22.7 | D102: 10.1 | E102: 9.8 | F102: 23.3 | G102: 14.3 | H102: 11.3
A103: general cargo | B103: current fleet | C103: 77.2 | D103: 76.5 | E103: 76.2 | F103: 78.3 | G103: 80.4 | H103: 84.2
B104: order book | C104: 4.3 | D104: 3.7 | E104: 3.6 | F104: 2.8 | G104: 2.8 | H104: 2.9
B105: completions | C105: 1.9 | D105: 1.7 | E105: 1.7 | F105: 1.4 | G105: 1.7 | H105: 1.3
B106: orders reported | C106: 1.4 | D106: 0.4 | E106: 0.7 | F106: 1 | G106: 1.1 | H106: 1
A107: container | B107: current fleet | C107: 244.8 | D107: 245.2 | E107: 253.7 | F107: 266.5 | G107: 276.7 | H107: 283.3
B108: order book | C108: 42 | D108: 35.8 | E108: 29.7 | F108: 27.5 | G108: 24.2 | H108: 22.8
B109: completions | C109: 18.8 | D109: 10.2 | E109: 10.3 | F109: 14.1 | G109: 11.3 | H109: 9.4
B110: orders reported | C110: 24.1 | D110: 3 | E110: 2.2 | F110: 12.9 | G110: 7.5 | H110: 6.5
A111: chemical | B111: current fleet | C111: 100 | D111: 106.4 | E111: 107.7 | F111: 111.5 | G111: 119.4 | H111: 123
B112: order book | C112: 16 | D112: 11.6 | E112: 13.3 | F112: 11.6 | G112: 8.4 | H112: 8
B113: completions | C113: 7.6 | D113: 6.9 | E113: 6.9 | F113: 4.6 | G113: 6.6 | H113: 5.3
B114: orders reported | C114: 6.6 | D114: 1 | E114: 1 | F114: 3.4 | G114: 2.8 | H114: 2.9
A115: liquefied gas | B115: current fleet | C115: 54.5 | D115: 59.9 | E115: 63.7 | F115: 68.5 | G115: 72.5 | H115: 75.6
B116: order book | C116: 18 | D116: 13 | E116: 12.1 | F116: 13.9 | G116: 14.5 | H116: 14.6
B117: completions | C117: 5 | D117: 5.9 | E117: 6 | F117: 5.7 | G117: 4.8 | H117: 4.4
B118: orders reported | C118: 4.8 | D118: 0.7 | E118: 0.6 | F118: 6.8 | G118: 6.6 | H118: 4.8
A119: ro-ro cargo | B119: current fleet | C119: 19.6 | D119: 19.6 | E119: 19.9 | F119: 20.1 | G119: 20.2 | H119: 19.9
B120: order book | C120: 1.9 | D120: 1.6 | E120: 1.4 | F120: 1.1 | G120: 1 | H120: 0.8
B121: completions | C121: 0.9 | D121: 0.5 | E121: 0.6 | F121: 0.4 | G121: 0.3 | H121: 0.3
B122: orders reported | C122: 0.9 | D122: 0.2 | E122: 0.2 | F122: 0.5 | G122: 0.3 | H122: 0.1
A123: refrigerated cargo | B123: current fleet | C123: 4.9 | D123: 4.8 | E123: 4.5 | F123: 4.4 | G123: 4.4 | H123: 4.3
B124: order book | C124: 0.1 | D124: 0.1 | E124: 0.2 | F124: 0.1 | G124: 0.1 | H124: 0.1
B125: completions | C125: 0 | D125: 0 | E125: 0 | F125: 0.1 | G125: 0.1 | H125: 0.0
B126: orders reported | C126: 0.1 | D126: 0 | E126: 0 | F126: 0 | G126: 0 | H126: 0
A127: all cargo carrying | B127: current fleet | C127: 1718.3 | D127: 1772.1 | E127: 1828.2 | F127: 1883.7 | G127: 1979.3 | H127: 1990.9
B128: order book | C128: 274.8 | D128: 199.1 | E128: 226.9 | F128: 201.9 | G128: 168.8 | H128: 148.5
B129: completions | C129: 94.2 | D129: 99.1 | E129: 99.3 | F129: 79.2 | G129: 98.3 | H129: 87.4
B130: orders reported | C130: 104.2 | D130: 23.7 | E130: 22.1 | F130: 67.2 | G130: 55.2 | H130: 46.1

Sheet Growth in deadweight
A1: Index
A4: Year | B4: oil | C4: bulk dry | D4: container | E4: general cargo
A5: 1995 | B5: 265.8 | C5: 227 | D5: 43.4 | E5: 81.9
A6: 1996 | B6: 270.3 | C6: 239.2 | D6: 48.6 | E6: 82
A7: 1997 | B7: 271 | C7: 249.8 | D7: 55.5 | E7: 80.7
A8: 1998 | B8: 277.6 | C8: 246.3 | D8: 61 | E8: 79.4
A9: 1999 | B9: 282 | C9: 248.4 | D9: 63.4 | E9: 79.5
A10: 2000 | B10: 283.8 | C10: 255 | D10: 69.1 | E10: 78
A11: 2001 | B11: 284.1 | C11: 268.1 | D11: 76.6 | E11: 75.4
A12: 2002 | B12: 280.4 | C12: 274.2 | D12: 83.9 | E12: 73.4
A13: 2003 | B13: 288.4 | C13: 280.9 | D13: 90.5 | E13: 72
A14: 2004 | B14: 300.1 | C14: 299.6 | D14: 99.2 | E14: 71.5
A15: 2005 | B15: 316.9 | C15: 323.2 | D15: 111.7 | E15: 73.2
A16: 2006 | B16: 331.7 | C16: 346.7 | D16: 128.3 | E16: 75
A17: 2007 | B17: 347.2 | C17: 369.9 | D17: 144.7 | E17: 78.3
A18: 2008 | B18: 356.6 | C18: 395 | D18: 161.9 | E18: 80.4
A19: 2009 | B19: 380.8 | C19: 433.8 | D19: 169.1 | E19: 80
A20: 2010 | B20: 392.6 | C20: 509.1 | D20: 183.9 | E20: 81.3
A21: 2011 | B21: 418.9 | C21: 599.8 | D21: 198 | E21: 78.5
A22: 2012 | B22: 432.5 | C22: 645.5 | D22: 206.1 | E22: 75.8
A23: 2013 | B23: 439.5 | C23: 685.3 | D23: 215.4 | E23: 76.8
A24: 2014 | B24: 443.1 | C24: 718.7 | D24: 228.4 | E24: 76.9
A25: 2015 | B25: 449.2 | C25: 735.6 | D25: 244.8 | E25: 77.2
A26: 2016 | B26: 471.6 | C26: 755.3 | D26: 245.2 | E26: 76.5
A27: 2017 | B27: 490.8 | C27: 778.8 | D27: 253.7 | E27: 76.2
A28: 2018 | B28: 498.4 | C28: 803.3 | D28: 266.5 | E28: 78.3
A29: 2019 | B29: 529.4 | C29: 843.4 | D29: 276.7 | E29: 80.4
A30: 2020 | B30: 537.9 | C30: 862.6 | D30: 283.3 | E30: 84.2

Sheet Ship Builds
A1: Index
A2: ShipStatus | B2: (All) | L2: ShipStatus | M2: (All)
A4: Count of ShipName | B4: Year | L4: Major ship builds booked as of April 2022
A5: ShiptypeLevel5 | B5: 2022 | C5: 2023 | D5: 2024 | E5: 2025 | F5: 2026 | G5: 2027 | H5: 2028 | I5: 2029 | J5: Grand Total | M5: 2022 | N5: 2023 | O5: 2024 | P5: 2025 | Q5: 2026-2029 | R5: 2026 | S5: 2027 | T5: 2028 | U5: 2029 | V5: Total
A6: Bulk Carrier | B6: 335 | C6: 316 | D6: 107 | E6: 6 | J6: 764 | L6: Container Ship (Fully Cellular) | M6: 187 | N6: 301 | O6: 277 | P6: 53 | Q6: =SUM(R6:U6) -> 5 | R6: 5 | V6: 823
A7: Bulk Carrier, Laker Only | C7: 1 | J7: 1 | L7: Bulk Carrier | M7: 335 | N7: 316 | O7: 107 | P7: 6 | Q7: =SUM(R7:U7) -> 0 | V7: 764
A8: Bulk Carrier, Self-discharging, Laker | B8: 1 | D8: 1 | J8: 2 | L8: General Cargo Ship | M8: 217 | N8: 105 | O8: 31 | P8: 15 | Q8: 8 | R8: 2 | S8: 3 | T8: 3 | V8: 376
A9: Cement Carrier | B9: 6 | C9: 2 | D9: 1 | J9: 9 | L9: Chemical/Products Tanker | M9: 172 | N9: 75 | O9: 18 | P9: 4 | Q9: 0 | V9: 269
A10: Chemical Tanker | B10: 15 | J10: 15 | L10: LNG Tanker | M10: 24 | N10: 48 | O10: 58 | P10: 38 | Q10: 3 | R10: 3 | V10: 171
A11: Chemical/Products Tanker | B11: 172 | C11: 75 | D11: 18 | E11: 4 | J11: 269 | L11: LPG Tanker | M11: 57 | N11: 81 | O11: 16 | P11: 1 | Q11: 1 | R11: 1 | V11: 156
A12: CNG Tanker | B12: 1 | J12: 1 | L12: Products Tanker | M12: 77 | N12: 14 | Q12: 2 | R12: 2 | V12: 93
A13: CO2 Tanker | D13: 2 | J13: 2 | L13: Vehicles Carrier | M13: 3 | N13: 13 | O13: 18 | P13: 7 | Q13: 0 | V13: 41
A14: Combination Gas Tanker (LNG/LPG) | C14: 1 | J14: 1 | L14: Ro-Ro Cargo Ship | M14: 26 | N14: 6 | O14: 3 | P14: 2 | Q14: 0 | V14: 37
A15: Container Ship (Fully Cellular) | B15: 187 | C15: 301 | D15: 277 | E15: 53 | F15: 5 | J15: 823 | L15: Replenishment Tanker | M15: 5 | N15: 5 | O15: 4 | P15: 4 | Q15: 5 | R15: 1 | S15: 2 | T15: 1 | U15: 1 | V15: 23
A16: FPSO, Oil | B16: 7 | C16: 2 | D16: 3 | J16: 12 | L16: Chemical Tanker | M16: 15 | Q16: 0 | V16: 15
A17: FSO, Gas | B17: 2 | J17: 2 | L17: Other | M17: =M18-SUM(M6:M16) -> 43 | N17: 17 | O17: 8 | P17: 2 | Q17: 0 | R17: 0 | S17: 0 | T17: 0 | U17: 0 | V17: =SUM(M17:U17) -> 70
A18: Gas Processing Vessel | B18: 1 | C18: 1 | J18: 2 | L18: Total | M18: 1161 | N18: 981 | O18: 540 | P18: 132 | Q18: 24 | R18: 14 | S18: 5 | T18: 4 | U18: 1 | V18: 2838
A19: General Cargo Ship | B19: 217 | C19: 105 | D19: 31 | E19: 15 | F19: 2 | G19: 3 | H19: 3 | J19: 376
A20: General Cargo Ship (with Ro-Ro facility) | B20: 1 | C20: 1 | J20: 2
A21: Heavy Load Carrier | B21: 2 | J21: 2
A22: Heavy Load Carrier, semi submersible | B22: 5 | C22: 1 | J22: 6
A23: Limestone Carrier | D23: 1 | J23: 1
A24: Livestock Carrier | B24: 1 | J24: 1
A25: LNG Tanker | B25: 24 | C25: 48 | D25: 58 | E25: 38 | F25: 3 | J25: 171
A26: LPG Tanker | B26: 57 | C26: 81 | D26: 16 | E26: 1 | F26: 1 | J26: 156
A27: Open Hatch Cargo Ship | B27: 6 | C27: 3 | J27: 9
A28: Ore Carrier | B28: 2 | J28: 2
A29: Products Tanker | B29: 77 | C29: 14 | F29: 2 | J29: 93
A30: Refrigerated Cargo Ship | B30: 4 | C30: 1 | J30: 5
A31: Replenishment Dry Cargo Vessel | B31: 1 | C31: 1 | E31: 2 | J31: 4
A32: Replenishment Tanker | B32: 5 | C32: 5 | D32: 4 | E32: 4 | F32: 1 | G32: 2 | H32: 1 | I32: 1 | J32: 23
A33: Ro-Ro Cargo Ship | B33: 26 | C33: 6 | D33: 3 | E33: 2 | J33: 37
A34: Stone Carrier | B34: 3 | C34: 3 | J34: 6
A35: Vehicles Carrier | B35: 3 | C35: 13 | D35: 18 | E35: 7 | J35: 41
A36: Grand Total | B36: 1161 | C36: 981 | D36: 540 | E36: 132 | F36: 14 | G36: 5 | H36: 4 | I36: 1 | J36: 2838

Sheet Ship Deadweight
A1: Index
A2: ShipStatus | B2: (All)
A3: Year | B3: (All)
A5: Count of ShipName | B5: ShiptypeLevel5
A6: Deadweight | B6: Container Ship (Fully Cellular) | C6: Bulk Carrier | D6: General Cargo Ship | E6: Chemical/Products Tanker | F6: LNG Tanker | G6: LPG Tanker | H6: Products Tanker | I6: Vehicles Carrier | J6: Ro-Ro Cargo Ship | K6: Replenishment Tanker | L6: Chemical Tanker | M6: FPSO, Oil | N6: Grand Total
A7: 0-37499 | B7: 332 | C7: 64 | D7: 371 | E7: 158 | F7: 6 | G7: 78 | H7: 81 | I7: 41 | J7: 31 | K7: 18 | L7: 15 | M7: 1 | N7: 1196
A8: 37500-74999 | B8: 127 | C8: 344 | D8: 5 | E8: 111 | F8: 1 | G8: 78 | H8: 11 | J8: 6 | K8: 5 | M8: 2 | N8: 690
A9: 75000-112499 | B9: 71 | C9: 238 | F9: 164 | H9: 1 | N9: 474
A10: 112500-149999 | B10: 83 | C10: 7 | M10: 1 | N10: 91
A11: 150000-187499 | B11: 147 | C11: 37 | M11: 1 | N11: 185
A12: 187500-224999 | B12: 31 | C12: 74 | N12: 105
A13: 225000-262499 | B13: 32 | M13: 4 | N13: 36
A14: 300000-337499 | M14: 2 | N14: 2
A15: 337500-374999 | M15: 1 | N15: 1
A16: Grand Total | B16: 823 | C16: 764 | D16: 376 | E16: 269 | F16: 171 | G16: 156 | H16: 93 | I16: 41 | J16: 37 | K16: 23 | L16: 15 | M16: 12 | N16: 2780
A20: ShipStatus | B20: (All)
A21: Year | B21: (All)
A23: Count of ShipName | B23: ShiptypeLevel5
A24: Deadweight | B24: Container Ship (Fully Cellular) | C24: Bulk Carrier | D24: General Cargo Ship | E24: Chemical/Products Tanker | F24: LNG Tanker | G24: LPG Tanker | H24: Products Tanker | I24: Vehicles Carrier | J24: Ro-Ro Cargo Ship | K24: Replenishment Tanker | L24: Chemical Tanker | M24: FPSO, Oil | N24: Grand Total
A25: 0-37,499 | B25: 332 | C25: 64 | D25: 371 | E25: 158 | F25: 6 | G25: 78 | H25: 81 | I25: 41 | J25: 31 | K25: 18 | L25: 15 | M25: 1 | N25: 1196
A26: 37,500-74,999 | B26: 127 | C26: 344 | D26: 5 | E26: 111 | F26: 1 | G26: 78 | H26: 11 | J26: 6 | K26: 5 | M26: 2 | N26: 690
A27: 75,000-112,499 | B27: 71 | C27: 238 | F27: 164 | H27: 1 | N27: 474
A28: 112,500-149,999 | B28: 83 | C28: 7 | M28: 1 | N28: 91
A29: 150,000-187,499 | B29: 147 | C29: 37 | M29: 1 | N29: 185
A30: 187,500-224,999 | B30: 31 | C30: 74 | N30: 105
A31: 225,000-262,499 | B31: 32 | M31: 4 | N31: 36
A32: 300,000-337,499 | M32: 2 | N32: 2
A33: 337,500-374,999 | M33: 1 | N33: 1
A34: Grand Total | B34: 823 | C34: 764 | D34: 376 | E34: 269 | F34: 171 | G34: 156 | H34: 93 | I34: 41 | J34: 37 | K34: 23 | L34: 15 | M34: 12 | N34: 2780

Sheet Summary by Pilot Group
A1: Index
A2: Total Pilotage Charges by Pilot Group and Vessel Type
A4: Pilot Group | B4: Large Container | C4: Medium Container | D4: Seven Hold Dry Bulk | E4: Five Hold Dry Bulk | F4: Large Tanker | G4: Small Tanker | H4: ATB | I4: Large Passenger
A5: Puget Sound | B5: 17979.76564 | C5: 8219.800574 | D5: 7653.936315 | E5: 5067.579736 | F5: 11388.22678 | G5: 5318.488456 | H5: 4411.1204 | I5: 20039.41994
A6: British Columbia | B6: 17754.01 | C6: 19184.78 | D6: 8404.49 | E6: 5907.79 | F6: 0 | G6: 17024.32 | H6: 6428.46 | I6: 10826.57
A7: British Columbia Prince Rupert | B7: 20696.59 | C7: 12651.43 | D7: 11358.5 | E7: 8713.04 | F7: 0 | H7: 8594.33
A8: San Francisco | B8: 19505.75 | C8: 8505.61 | D8: 6857.37 | E8: 3609.26 | F8: 12825.71 | G8: 6079.77 | H8: 4144.57 | I8: 21090.15
A9: Columbia River Bar | C9: 7852.7 | D9: 7112.17 | E9: 5202.23 | F9: 10092.21 | G9: 7028.6 | H9: 5389.39
A10: Columbia River | C10: 16301.28 | D10: 14660.18 | E10: 8015.23 | F10: 22297.53 | G10: 13125.18 | H10: 7156.39
A11: Columbia River and Bar | C11: 24153.98 | D11: 21772.35 | E11: 13217.46 | F11: 32389.74 | G11: 20153.78 | H11: 12545.78
A12: Los Angeles | B12: 5756.97 | C12: 0 | D12: 0 | E12: 2238.33 | F12: 0 | G12: 0 | H12: 2852.88 | I12: 5356.66
A13: Grays Harbor | C13: 0 | D13: 0 | E13: 6918.71 | F13: 0 | G13: 8590.61 | H13: 0

Sheet Proposed vs Other Pilot Groups
A1: Index
A3: Type | B3: Proposed per mile | C3: Proposed per hour
A4: Large Container | B4: 202.0198386 | C4: 2568.537949
A5: 140k IGT | B5: 227.6155128 | C5: 3550.802
B6: 713.6755172 | C6: 5174.1475
B7: 975.2875 | C7: 9752.875
B9: 943.7655738 | C9: 4797.475
A11: Medium Container | B11: 119.1275446 | C11: 1369.966762
A12: 55k IGT | B12: 236.8491358 | C12: 2740.682857
B13: 436.2562069 | C13: 2530.286
B14: 425.2805 | C14: 4252.805
B15: 448.7257143 | C15: 3830.585366
B16: 211.4303502 | C16: 2154.354185
B17: 255.3274841 | C17: 2511.679029
A20: Seven Hold Dry Bulk | B20: 117.7528664 | C20: 956.7420393
A21: 44k IGT | B21: 155.6387037 | C21: 1449.05
B22: 378.6166667 | C22: 2839.625
B23: 263.745 | C23: 1959.248571
B24: 406.4097143 | C24: 5334.1275
B25: 188.6767053 | C25: 1954.690667
B26: 228.7011555 | C26: 2464.79434
A29: Five Hold Dry Bulk | B29: 76.78151115 | C29: 844.5966226
A30: 21k IGT | B30: 70.33083333 | C30: 984.6316667
B31: 290.4346667 | C31: 2178.26
B32: 171.8695238 | C32: 902.315
B33: 297.2702857 | C33: 1205.149807
B34: 178.1162222 | C34: 2268.461321
B35: 211.47936 | C35: 1683.752866
B36: 272.9670732 | C36: 2797.9125
B37: 354.805641 | C37: 2306.236667
A38: Large Tanker | B38: 277.7616287 | C38: 2847.056694
A39: 85k IGT
B41: 610.7480952 | C41: 298.1336588
B42: 576.6977143 | C42: 339.8050505
B43: 268.6449398 | C43: 750.7585859
B44: 322.2859701 | C44: 1090.563636
A47: Small Tanker | B47: 129.7192306 | C47: 1297.192306
A48: 29k IGT | B48: 197.9572093 | C48: 1418.693333
B49: 141.39 | C49: 1215.954
B50: 401.6342857 | C50: 4259.757576
B51: 164.06475 | C51: 1381.597895
B52: 206.7054359 | C52: 1807.513901
B54: 440.5441026 | C54: 2863.536667
A55: ATB | B55: 107.5883024 | C55: 882.22408
A56: 14k IGT | B56: 74.92377622 | C56: 459.1757143
B57: 286.4776667 | C57: 2864.776667
B58: 96.38534884 | C58: 690.7616667
B59: 307.9651429 | C59: 3201.617822
B60: 85.70526946 | C60: 996.2491879
B61: 124.2156436 | C61: 1414.937594
B62: 385.5243243 | C62: 4754.8
A64: Large RO/RO
A65: (70-80k)
A70: RO/RO | B70: 111.2516623 | C70: 1650.23299
A71: TOTE Comp | B71: 1420.97 | C71: 2368.283333
B72: 477.7518135 | C72: 4098.048889
B74: 340.8152941 | C74: 2069.235714
A76: Medium RO/RO | B76: 102.4605116 | C76: 1317.349435
A77: 55k IGT | B77: 102.1945455 | C77: 1545.6925
B78: 364.3974619 | C78: 2392.876667
B79: 166.6009975 | C79: 1908.771429
B80: 193.9513189 | C80: 2185.883784
B81: 436.3148571 | C81: 5090.34
B82: 190.611039 | C82: 1834.63125
B83: 236.111746 | C83: 2348.690526
A86: Small RO/RO | B86: 79.41199598 | C86: 1035.808643
A87: 36k IGT | B87: 84.02561983 | C87: 1270.8875
B88: 467.6469231 | C88: 2026.47
B89: 151.8770068 | C89: 1594.708571
B90: 283.5984456 | C90: 2432.644444
B91: 361.6342857 | C91: 4364.551724
B92: 121.4630326 | C92: 1211.59375
B93: 164.6593011 | C93: 1695.380952
B95: 401.9051282 | C95: 2411.430769
A96: Large Passenger | B96: 303.6275748 | C96: 4007.883987
A97: 168k IGT | B97: 130.4406024 | C97: 1804.428333
B98: 1360.654839 | C98: 10545.075
B100: 787.7441176 | C100: 4869.690909
A102: M passenger | B102: 184.5984517 | C102: 5907.150455
A103: 85k IGT | B103: 95.67337349 | C103: 1323.481667
B104: 901.2939189 | C104: 6669.575
B105: 642.5742857 | C105: 6078.405405
B106: 304.8219162 | C106: 2313.875455
B107: 363.3433663 | C107: 2855.850584
B108: 616.1955882 | C108: 3809.209091
A110: S passenger | B110: 96.39556604 | C110: 1060.351226
A111: 30k IGT | B111: 57.23216867 | C111: 791.7116667
B113: 384.5994286 | C113: 4486.993333
B114: 133.2342515 | C114: 1112.506
B115: 176.7876238 | C115: 1785.555
B116: 322.5235294 | C116: 2741.45

Sheet Summary Pilot Fees
A1: Index
A2: Puget Sound Pilots Proposed Pilotage Fees by Option and Vessel Type
A4: Vessel Type | B4: Cargo Units | C4: Volume | D4: Per Mile | E4: Per Hour | F4: Per Cargo Unit | H4: Market Unit | I4: Value | J4: Revenue | K4: Based On
A5: Large Container | B5: TEU | C5: 13200 | D5: 202.0198386 | E5: 2568.537949 | F5: 0.6227121647 | H5: per TEU | I5: 0.6227121647 | J5: 79200000 | K5: container rate
A6: Medium Container | B6: TEU | C6: 4888 | D6: 119.1275446 | E6: 1369.966762 | F6: 1.681628595 | H6: per TEU | I6: 1.681628595 | J6: 29328000 | K6: container rate
A7: Seven Hold Dry Bulk | B7: Metric Ton | C7: 69300 | D7: 117.7528664 | E7: 956.7420393 | F7: 0.1104464115 | H7: per bushel | I7: 0.003005862547 | J7: 38115000 | K7: FOB
A8: Five Hold Dry Bulk | B8: Metric Ton | C8: 31185 | D8: 76.78151115 | E8: 844.5966226 | F8: 0.1625005527 | H8: per bushel | I8: 0.004422545909 | J8: 17151750 | K8: FOB
A9: Large Tanker | B9: Barrel | C9: 1014100 | D9: 277.7616287 | E9: 2847.056694 | F9: 0.01122988539 | H9: per gallon | I9: 0.0002673782236 | J9: 114593300 | K9: Brent
A10: Small Tanker | B10: Barrel | C10: 330000 | D10: 129.7192306 | E10: 1297.192306 | F10: 0.01611663169 | H10: per gallon | I10: 0.0003837293258 | J10: 37290000 | K10: Brent
A11: ATB | B11: Barrel | C11: 185000 | D11: 107.5883024 | E11: 882.22408 | F11: 0.02384389405 | H11: per gallon | I11: 0.0005677117632 | J11: 20905000 | K11: Brent
A12: Large Passenger | B12: Passenger | C12: 4004 | D12: 303.6275748 | E12: 4007.883987 | F12: 5.004850134 | J12: 6006000

Sheet Risk Reduction
A1: Index
